{"text_format":"1","workbook":"xlsx","n_sheets":4,"sheets":["Opskrifter","Vare","Retter","Indkøb"],"not_rendered":{"charts":0,"images":2,"macros":1,"external_links":0,"defined_names":2,"comments":0,"pivot_tables":0},"unopened":[],"bounds":{"document_bytes":16777216,"sheet_cells":100000,"rows_first":2000,"rows_last":500,"rows_between":2000,"halvings":0,"cell_chars":16384,"cell_head_chars":4096},"cells_cut":0,"cells_raw":0,"read":"whole","date_system":"1900"}

{"sheet":"Opskrifter","index":0,"n_rows":28,"n_cols":3,"rows_kept":28,"cut":false,"hidden":false,"merged":[]}
[]
["Menu","½ kylling "]
[]
["Ingridienser","Indkøb","Enhed"]
[]
["Agurkesalat",1,{"$f":"IFERROR(VLOOKUP(A6,Vare!$A$2:$I$840,4,FALSE),\"\")","v":"DS"}]
["Kylling Griller 1300 g",1,{"$f":"IFERROR(VLOOKUP(A7,Vare!$A$2:$I$840,4,FALSE),\"\")","v":"STK"}]
["Remoulade",1,{"$f":"IFERROR(VLOOKUP(A8,Vare!$A$2:$I$840,4,FALSE),\"\")","v":"FL"}]
[null,null,{"$f":"IFERROR(VLOOKUP(A9,Vare!$A$2:$I$840,4,FALSE),\"\")","v":""}]
[null,null,{"$f":"IFERROR(VLOOKUP(A10,Vare!$A$2:$I$840,4,FALSE),\"\")","v":""}]
[null,null,{"$f":"IFERROR(VLOOKUP(A11,Vare!$A$2:$I$840,4,FALSE),\"\")","v":""}]
[null,null,{"$f":"IFERROR(VLOOKUP(A12,Vare!$A$2:$I$840,4,FALSE),\"\")","v":""}]
[null,null,{"$f":"IFERROR(VLOOKUP(A13,Vare!$A$2:$I$840,4,FALSE),\"\")","v":""}]
[null,null,{"$f":"IFERROR(VLOOKUP(A14,Vare!$A$2:$I$840,4,FALSE),\"\")","v":""}]
[null,null,{"$f":"IFERROR(VLOOKUP(A15,Vare!$A$2:$I$840,4,FALSE),\"\")","v":""}]
[null,null,{"$f":"IFERROR(VLOOKUP(A16,Vare!$A$2:$I$840,4,FALSE),\"\")","v":""}]
[null,null,{"$f":"IFERROR(VLOOKUP(A17,Vare!$A$2:$I$840,4,FALSE),\"\")","v":""}]
[null,null,{"$f":"IFERROR(VLOOKUP(A18,Vare!$A$2:$I$840,4,FALSE),\"\")","v":""}]
[null,null,{"$f":"IFERROR(VLOOKUP(A19,Vare!$A$2:$I$840,4,FALSE),\"\")","v":""}]
[null,null,{"$f":"IFERROR(VLOOKUP(A20,Vare!$A$2:$I$840,4,FALSE),\"\")","v":""}]
[null,null,{"$f":"IFERROR(VLOOKUP(A21,Vare!$A$2:$I$840,4,FALSE),\"\")","v":""}]
[null,null,{"$f":"IFERROR(VLOOKUP(A22,Vare!$A$2:$I$840,4,FALSE),\"\")","v":""}]
[null,null,{"$f":"IFERROR(VLOOKUP(A23,Vare!$A$2:$I$840,4,FALSE),\"\")","v":""}]
[null,null,{"$f":"IFERROR(VLOOKUP(A24,Vare!$A$2:$I$840,4,FALSE),\"\")","v":""}]
[null,null,{"$f":"IFERROR(VLOOKUP(A25,Vare!$A$2:$I$840,4,FALSE),\"\")","v":""}]
[null,null,{"$f":"IFERROR(VLOOKUP(A26,Vare!$A$2:$I$840,4,FALSE),\"\")","v":""}]
[null,null,{"$f":"IFERROR(VLOOKUP(A27,Vare!$A$2:$I$840,4,FALSE),\"\")","v":""}]
[null,null,{"$f":"IFERROR(VLOOKUP(A28,Vare!$A$2:$I$840,4,FALSE),\"\")","v":""}]

{"sheet":"Vare","index":1,"n_rows":835,"n_cols":227,"rows_kept":835,"cut":false,"hidden":false,"merged":[]}
["Beskrivelse","Mærke","Faktureret antal","Basisenhed","Købt","Salgsbeløb (faktisk)","Stk. pris","I alt","Gruppe","½ kylling ","Apple pie ","Aspargessuppe","Avocado m. rejer ","Bagt laks ","Barbecue kylling ","Biksemad","Boller i karry","Brownie m. is ","Bruchetta","Brunsviger ","Brændende kærlighed","Buffalo chicken","Burger","Butter chicken","Butterdej m. skinke og broccoli ","Butterdejspakker","Byg selv burger","Byg selv sandwich","Bøf bernaise","Bøf m. rødvinssauce","Bøf stroganoff","Camembert frites ","Carbonara","Cheesecake","Chili con carne","Chokolade fondant ","Chokoladekage","Chokolademousse","Citronfromage ","Citrontærte","Club sandwich","Coq au vin","Creme brulee","Cremet pasta m. laks","Culottesteg ","Cæsarsalat m. kylling","Dannebrogsgryde","Dansk bøf","Drømmekage","Dunse sandwich","Engelsk bøf","Fish 'n' chips","Fisk","Fiskefilet m. remo","Fiskefrikadeller","Fiskesalat","Flæskesteg","Flæskestegssandwich","Forloren hare","Forårsruller","Fransk løgsuppe","Frikadeller","Frikadeller m. hvidkål","Frikadeller m. kartofler","Frugtsalat m. råcreme","Frugtsuppe","Frugttærte ","Fyldt kylling ","Fyldte peberfrugter","Gammeldaws oksesteg","Gammeldaws æblekage","Gazpacho","Glaseret skinke","Gratineret hvidløgsrejer","Gratineret torsk","Gravad laks","Grillspyd","Græske kødboller","Gullash m. mos","Hakkebøf m. bløde løg","Hamburgerryg ","Hamburgerryg m. grønt","Hellefisk ","Helstegt kylling ","Helstegt rødspætte","Herregårdsbøf ","Herregårdsskinke ","Hindbærmousse","Hot wings","Hotdogs","Hønsesuppe","Indbagt laks","Is","Is m. vafler og guf","Islagkage ","Jordbær m. fløde","Jordskokkesuppe","Kalkunbryst","Kalv stegt som vildt","Kalve culotte","Kalvekoteletter ","Kalvemørbrad","Kalvesteak m. pommes","Kammusling ","Karbonader","Karry würst","Karrysuppe","Kartoffelporresuppe ","Kebabmix","Kokkens sorte gryde","Koldskål","Kong Frederiks livret ","Koteletter i fad ","Krebinetter","Kylling","Kylling i karry","Kylling m. fries","Kylling m. kartofsalat","Kylling m. pommes","Kylling thai karry ","Kylling/spinat lasagne","Kyllinge-frikassé","Kyllingeoverlår m. pasta","Kyllingesandwich","Kylling-spinat lasagne","Kød/melbolle suppe","Lagkage","Laks m. hollandaise","Laks m. stuvet spinat","Laksefillet","Lakseroulade ","Laksetatar ","Lammekølle ","Lasagne","Limetærte","Mac 'n' cheese","Marineret mørbrad","Mazarin","Medister","Mexi pandekager","Mexiburger","Mexicansk","Millionbøf","Moules frites","Mørbrad m. bacon","Mørbradgryde  ","Nachos","Nakkefilet","Nøddebund m. hindbærmousse","Oksefilet","Oksefilet","Ovnbagt laks","Pandekager m. is","Paneret stegt flæsk","Panna cotta","Paprikagryde","Pariserbøf","Pasta","Pasta bolognese","Pasta m. kødboller","Pasta m. pesto/kylling","Pastaret","Peberbøf","Peberhakkebøf","Pirogger ","Pita","Pizza","Porchetta","Pulled pork burger","Purésuppe ","Pølsehorn","Pølsemix","Rabarbergrød ","Rabarbersuppe m. is ","Rabarbertrifli ","Rejecocktail","Rejespyd","Ribbenstegsburger","Ris taffel","Risengrød","Rispapirsruller","Ristet brød m. svampe","Rodfrugtssuppe","Rødgrød","Rødtunge","Saltimbocca","Skaldyrsrisotto","Skinkeschnitzler ","Skipperlabscovs","Smuldrepai","Spareribs","Steaks","Stegt flæsk","Stegt tun","Stegte rejer i hvidløg","Stjerneskud","Suppe","Svamperisotto ","Svensk pølseret","Svin a la creme","Svinekoteletter ","Svinemørbrad","Svøbt asparges","Tacoskaller","Tarteletter","Tatar","T-bone steak","Thaisuppe m. kylling","Tikka masala ","Tiramisu","Toast","Tomatsuppe","Torsk","Torsk m. gratin","Tortelinni ","Tunmousse m. salat","Tunsalat","Tærte","Vafler a la Kuffen","Valnøddebrownie ","Vaniljeis m. bær","Vildt gryde m. kartofmos","Wienerschnitzel","Wok","Æggekage m. bacon","Ærtesuppe","Ørred"]
["5-Kornsblanding","HAVNEMØL",2,"SÆK",null,334,{"$f":"F2/C2","v":167},{"$f":"E2*G2","v":0},"Mel"]
["A38 Ymer 3,5%","ARLA A38",117,"STK",null,1497.6,12.799999999999999,{"$f":"E3*G3","v":0},"Mælk & Smør"]
["Agurk m/Film DK","GRØNT",76.5,"KS",null,1593.81,20.834117647058822,0,"Frisk Frugt og Grønt",null,null,null,null,null,null,null,null,null,null,null,null,null,2]
["Agurk u/film","GRØNT",77.55,"KG",null,1452.19,18.725854287556416,0,"Frisk Frugt og Grønt"]
["Agurkesalat","SAMSØ",8,"DS",null,306.64,38.33,0,"Survarer m.v.",1]
["Akaciehonning Squeeze","JAKOBSEN",56,"FL",null,1414,25.25,0,"Kolonial"]
["All Bran Regular","KELLOGGS",32,"PK",null,954.28,29.821249999999999,0,"Kolonial"]
["Ananas stor","GRØNT",25.72,"KG",null,278,10.808709175738725,0,"Frisk Frugt og Grønt"]
["Andebryst Berberi 300-400 g","DK TRAD",34.127000000000002,"KG",null,2935.26,86.009904181439921,0,"Ænder & Kalkuner"]
["Andefedt","ROUGIE",3,"DS",null,146.46,48.82,0,"Kødkonserves m.m."]
["Andelår Berberi 300-400 g","DK TRAD",10,"KG",null,448.4,44.839999999999996,0,"Ænder & Kalkuner"]
["Andelår Confit","LABEYRIE",20,"DS",null,2452.6,122.63,0,"Kødkonserves m.m."]
["Andepaté m/Madagascarpeber FR","DELITAST",2,"STK",null,183.85,91.924999999999997,0,"Pålæg"]
["Ansjosfilet i Olie","PONTE S",6,"GL",null,207.42,34.57,0,"Fiskekonserves"]
["Appelsiner Stor","GRØNT",45,"KG",null,558.75,12.416666666666666,0,"Frisk Frugt og Grønt"]
["Appelsinjuice 1 ltr","RYNKEBY",364,"STK",null,5132.72,14.100879120879121,0,"Saft Juice & Læskedrik"]
["Appelsinmarmelade Portion","RYNKEBY",2,"KRT",null,178.2,89.1,0,"Marmelade Syltetøj & Grød"]
["Artiskokhjerte Grillet Kvart","PONTE S",1,"GL",null,56.18,56.18,0,"Grøntkonserves"]
["Asier Strimler","SAMSØ",4,"DS",null,240.08,60.02,0,"Survarer m.v."]
["Asparges Grønne","GRØNT",17,"KG",null,1263.3,74.311764705882354,0,"Frisk Frugt og Grønt"]
["Aspargessnitte m/Hoved Fin","LIBITOP",3,"DS",null,159.38999999999999,53.129999999999995,0,"Grøntkonserves"]
["Aspic Pålægssky Mørk 30 ltr","KNORR",1,"DS",null,314.47000000000003,314.47000000000003,0,"Tørsupper, Tørsauce m.v."]
["Aubergine","GRØNT",5,"KG",null,90,18,0,"Frisk Frugt og Grønt"]
["Avocado ReadyToEat","GRØNT",28,"KG",null,1592.56,56.877142857142857,0,"Frisk Frugt og Grønt"]
["Bacon Gourmet Tørsaltet/Peber","SUBLIM",22.16,"KG",null,1515.96,68.409747292418771,0,"Svinekødsprodukter"]
["Bacon Koge","CATER F",21.94,"KG",null,1341.85,61.159981768459424,0,"Svinekødsprodukter"]
["Bacon Røget Skiver Køl","TULIP",3,"PK",null,214.92,71.64,0,"Svinekødsprodukter"]
["Bacon Skiver","QUALITY",148,"PK",null,6606.72,44.64,0,"Svinekødsprodukter"]
["Bacon Stege Tørsaltet Hel","CATER F",10.41,"KG",null,820.83,78.850144092219026,0,"Svinekødsprodukter"]
["Bagekartofler","GRØNT",270,"KG",null,1801.15,6.6709259259259266,0,"Frisk Frugt og Grønt"]
["Bagepulver Almindelig","TØRSLEFF",1,"BT",null,52.08,52.08,0,"Bageartikler"]
["Baguette Parisienne Stenovnsb","KOHBERG",1,"KRT",null,155.21,155.21,0,"Brød Bake Off"]
["Bambusskud Strimler","ASIANWOK",2,"DS",null,48.16,24.08,0,"Grøntkonserves"]
["Bananer","GRØNT",136.80000000000001,"KG",null,1890.6,13.82017543859649,0,"Frisk Frugt og Grønt"]
["Basilikum i Bundt","GRØNT",0.5,"KG",null,142.5,285,0,"Frisk Frugt og Grønt"]
["Basilikum i Stor Potte","LEGRO",0.16,"KG",null,39.299999999999997,245.62499999999997,0,"Frisk Frugt og Grønt"]
["Basilikum Løst pakket i Bakke","LEGRO",1.1000000000000001,"KG",null,417.56,379.59999999999997,0,"Frisk Frugt og Grønt"]
["Bearnaiseessens","BEAUVAIS",2,"FL",null,90.66,45.33,0,"Kolonial"]
["Benfri Sild","TENAX",3,"BT",null,266.27999999999997,88.759999999999991,0,"Fiskekonserves"]
["Bierwurst","CATERKØD",3.62,"KG",null,171.55,47.389502762430944,0,"Pålæg"]
["Birkes Blå","SUN ISLA",13,"PS",null,261.39999999999998,20.107692307692307,0,"Kolonial"]
["Birkes Hvid","SUN ISLA",13,"PS",null,326.75,25.134615384615383,0,"Kolonial"]
["BlackTiger Rå Pillet 16/20","NORDIC S",10,"PS",null,1275,127.5,0,"Fisk"]
["Blandet Saft A 1+4 10 ltr","RYNKEBY",22,"DK",null,4531.78,205.98999999999998,0,"Saft Juice & Læskedrik"]
["Blegselleri DK","GRØNT",1.998,"KG",null,29.97,15,0,"Frisk Frugt og Grønt"]
["Blokspegepølse m/Peber","CATERKØD",5.3,"KG",null,445.3,84.018867924528308,0,"Pålæg"]
["Blomkål DK","GRØNT",34,"KG",null,522.54,15.368823529411763,0,"Frisk Frugt og Grønt"]
["Blommer","GRØNT",50,"KG",null,1378.35,27.566999999999997,0,"Frisk Frugt og Grønt"]
["Blåbær","FRIGODAN",4,"PS",null,183.6,45.9,0,"Frugt Dybfrost"]
["Blåbær bk","GRØNT",3.5,"KG",null,485.84,138.81142857142856,0,"Frisk Frugt og Grønt"]
["Blåmusling Hel Kogt 50/80","PLANETS",2,"PS",null,61.8,30.9,0,"Fisk"]
["Blåmusling i Net 1000g","CAT FISK",25.3,"KG",null,516.28,20.406324110671935,0,"Fisk, fersk"]
["Bolchebeder","GRØNT",5,"KG",null,83.55,16.71,0,"Frisk Frugt og Grønt"]
["Bordsalt Fint m/Jod","JOZO",30,"PK",null,148.5,4.95,0,"Krydderier"]
["Bresaola Black Angus","DELITAST",3.339,"KG",null,697.85,{"$f":"F56/C56","v":208.99970050913447},0,"Pålæg"]
["Brie President 60%","PRESIDEN",6.282,"KG",null,419.01,66.700095510983758,{"$f":"E57*G57","v":0},"Ost"]
["Broccoli DK","GRØNT",53.6,"KG",null,1476.84,27.552985074626864,0,"Frisk Frugt og Grønt"]
["Brombær bk","GRØNT",4.875,"KG",null,763.66,156.64820512820512,0,"Frisk Frugt og Grønt"]
["Brombærpuré","BOIRON",4,"PK",null,440.68,110.17,0,"Puré"]
["Brun Farin","DANSUKKE",48,"PK",null,399.84,8.33,0,"Melis & øvrige sukkerprodukter"]
["Brunchpølse 20 g","KOKKENS",4.3760000000000003,"KG",null,292.83999999999997,66.919561243144415,0,"Svinekødsprodukter"]
["Brystflæsk u/Ben Top Køl","AB SLAGT",30.46,"KG",null,1393.55,45.750164149704531,0,"Svinekød"]
["Brøndkarse i Potte","GRØNT",0.4,"KG",null,93.04,232.6,0,"Frisk Frugt og Grønt"]
["Buko Alpeost 17%","BUKO",20,"STK",null,345.6,17.28,0,"Ost"]
["Buko Champignonost Port 18%","BUKO",4,"KRT",null,366.04,91.51,0,"Ost"]
["Buko Fløde/Smelteost Ass 20 g","BUKO",1,"KRT",null,90.92,90.92,0,"Ost"]
["Buko Flødeost Pikant 20 g","BUKO",9,"KRT",null,818.28,90.92,0,"Ost"]
["Buko Flødeost Pikant 23%","BUKO",10,"STK",null,131.6,13.16,0,"Ost"]
["Buko Rejeost Portion 18%","BUKO",9,"KRT",null,823.59,91.51,0,"Ost"]
["Buko Skinkeost Port 18%","BUKO",7,"KRT",null,640.57000000000005,91.51,0,"Ost"]
["Bulgur Fin","UNIFOOD",4,"PS",null,50.52,12.63,0,"Kolonial"]
["Bulgur Grov","DURU",1,"PS",null,38.200000000000003,38.200000000000003,0,"Kolonial"]
["Burgerbolle Buffalo","SCHULSTA",2,"KRT",null,410,205,0,"Brød Fast Food",null,null,null,null,null,null,null,null,null,null,null,null,null,55]
["Buræg Str M Plast DK","DANÆG",19,"BK",null,617.5,32.5,0,"Æg & Ægprodukter"]
["Butterdejsplade 46x56 cm","HUMLUM",2,"KRT",null,476.78,238.39,0,"Brød Bake Off"]
["Bødker Bacon Røget","BØDKER",27.04,"KG",null,1429.25,52.856878698224854,0,"Svinekødsprodukter"]
["Bødker Hamburgerryg u/Ben","BØDKER",34.06,"KG",null,1582.78,46.470346447445678,0,"Svinekødsprodukter"]
["Bøfpeber Grøn","SUNBEST",1,"DS",null,14.17,14.17,0,"Grøntkonserves"]
["Bønner Bobby","GRØNT",6,"KG",null,393.08,65.513333333333335,0,"Frisk Frugt og Grønt"]
["Bønner friske nippet","GRØNT",2,"KG",null,198,99,0,"Frisk Frugt og Grønt"]
["Camembert Paneret Forbagt","CHEF S",2,"KRT",null,350,175,0,"Forårsruller m.v."]
["Capers Nonpareilles","PARADISO",1,"GL",null,177.71,177.71,0,"Survarer m.v."]
["Capersbær m/Stilk","SUNBEST",2,"GL",null,94.94,47.47,0,"Survarer m.v."]
["Cashewnøddekerner W320","ABL FOOD",2,"PS",null,286.14,143.07,0,"Nødder & Mandler"]
["Caterblommer Neutral Køl","GALLINA",16,"DK",null,2806.12,175.38249999999999,0,"Æg & Ægprodukter"]
["Caterhvider Køl","GALLINA",7,"DK",null,559.58000000000004,79.940000000000012,0,"Æg & Ægprodukter"]
["CdO Chokoladeis","CARTE D",2,"SP",null,426.96,213.48,0,"Iscreme"]
["CdO Jordbæris","CARTE D",2,"SP",null,396.96,198.48,0,"Iscreme"]
["CdO Vaniljeis","CARTE D",2,"SP",null,396.96,198.48,0,"Iscreme"]
["Cervelatpølse","TULIP",2,"STK",null,132.47999999999999,66.239999999999995,0,"Pålæg"]
["Champignon Hel Grillet i Olie","FELDTHUS",6,"BT",null,543.78,90.63,0,"Grøntkonserves"]
["Champignon i Bakke","GRØNT",2,"KG",null,84,42,0,"Frisk Frugt og Grønt"]
["Champignon Rodskåret","GRØNT",37.5,"KG",null,860.8,22.954666666666665,0,"Frisk Frugt og Grønt"]
["Cheddar Revet Rød","FALENGR",18,"PS",null,839.64,46.646666666666668,0,"Ost"]
["ChickenWings Buffalo ExtraHot","SALOMON",24,"PS",null,3364.08,140.16999999999999,0,"Kyllinger & Høns"]
["Chili Carolina Reaper","GRØNT",0.3,"KG",null,221.2,737.33333333333337,0,"Frisk Frugt og Grønt"]
["Chili Grøn","GRØNT",0.45,"KG",null,22.95,51,0,"Frisk Frugt og Grønt"]
["Chili Habanero","GRØNT",1.05,"KG",null,160.65,153,0,"Frisk Frugt og Grønt"]
["Chili Mix","GRØNT",7.0000000000000007E-2,"KG",null,15.77,225.28571428571425,0,"Frisk Frugt og Grønt"]
["Chili Rød","GRØNT",0.15,"KG",null,9.9499999999999993,66.333333333333329,0,"Frisk Frugt og Grønt"]
["Chilisauce Squeeze","LINGHAM",36,"FL",null,924.84,25.69,0,"Saucer Soya m.v."]
["Chilisauce Sriracha Hot","LINGHAM",9,"FL",null,390.96,43.44,0,"Saucer Soya m.v."]
["Chipotle Chili Paste","SANTA M",1,"DS",null,68.05,68.05,0,"Krydderier"]
["Chokodråbe Mørk Bagestabil L","CALLEBAU",2,"PS",null,485.36,242.68,0,"Chokolade & Marcipan"]
["Chokoladedrik Fantasy Blue UTZ","DOUWE E",20,"PS",null,971.8,48.589999999999996,0,"Kaffe, The & Chokoladedrik"]
["Chorizo Extra Vela","DELITAST",10.89,"KG",null,710.46,65.239669421487605,0,"Pålæg"]
["Chorizo Iberisk","DELITAST",1.08,"KG",null,100.12,92.703703703703695,0,"Pålæg"]
["Chorizo San Polo 80 mm","DELIKA",1.865,"KG",null,114.81,61.560321715817693,0,"Pålæg"]
["Cider Val de Rance Brut 4% Øko","VAL DE R",12,"FL",null,558,46.5,0,"Øl og Sodavand"]
["Citron","GRØNT",99,"KG",null,2275.44,22.984242424242424,0,"Frisk Frugt og Grønt"]
["Citrongræs ps","GRØNT",0.1,"KG",null,29.26,292.60000000000002,0,"Frisk Frugt og Grønt"]
["Citronsaft","REALEMON",1,"FL",null,22.99,22.99,0,"Kolonial"]
["Citronsaft","VERIBEST",5,"FL",null,92.3,18.46,0,"Kolonial"]
["Citronsaft","SVANSØ",2,"FL",null,35.96,17.98,0,"Saft Juice & Læskedrik"]
["Citronverbena i Bakke","LEGRO",0.03,"KG",null,24,800,0,"Frisk Frugt og Grønt"]
["Comté Le Montagnard AOP","ARNAUD",2.09,"KG",null,283.11,135.45933014354068,0,"Ost"]
["Cornflakes","KELLOGGS",28,"PK",null,813.68,{"$f":"F118/C118","v":29.06},0,"Kolonial"]
["CousCous Grov","UNIFOOD",2,"PS",null,81.86,40.93,{"$f":"E119*G119","v":0},"Kolonial"]
["CremeFraiche Arla Pro 18%","ARLA PRO",2,"SP",null,217.84,108.92,0,"Mælk & Smør"]
["CremeFraiche Arla Pro 38%","ARLA PRO",18,"SP",null,2960.82,164.49,0,"Mælk & Smør"]
["Curry Paste Grøn","SANTA M",1,"GL",null,37.92,37.92,0,"Krydderier"]
["Curry Paste Rød","SANTA M",2,"GL",null,79.2,39.6,0,"Krydderier"]
["Dadler/Baconsvøb","LA SELVA",6,"BK",null,1008.78,168.13,0,"Færdigretter"]
["Demi Glace Okse Signature","OSCAR",54,"STK",null,3325.86,61.59,0,"Saucer Soya m.v."]
["Dijonsennep Original","MAILLE",24,"GL",null,469.44,19.559999999999999,0,"Sennep  Ketchup & Ristede Løg"]
["Dild i Bundt","GRØNT",3.9,"KG",null,459.04,117.70256410256411,0,"Frisk Frugt og Grønt"]
["Drueagurker","SAMSØ",1,"DS",null,47.71,47.71,0,"Survarer m.v."]
["Duebryst Supreme 95 g","CHARMILL",2.1640000000000001,"KG",null,861.47,398.09149722735674,0,"Lam & Vildt m.v."]
["Eddike u/Farve 5%","HEIDELB",2,"DK",null,80.52,40.26,0,"Kolonial"]
["Eddike u/Farve 5%","HEIDELB",12,"FL",null,82.92,6.91,0,"Kolonial"]
["Engelsk Sauce","BEAUVAIS",18,"FL",null,418.14,23.23,0,"Saucer Soya m.v."]
["Espagnol Sauce ReadyToUse","OSCAR",12,"STK",null,504.6,42.050000000000004,0,"Saucer Soya m.v."]
["Estragon i Bundt","GRØNT",2.0499999999999998,"KG",null,615,300,0,"Frisk Frugt og Grønt"]
["Eventyr Crowny Vaffel l/f","EVENTYR",5,"ÆSK",null,793.8,158.76,0,"Iscreme"]
["Eventyr Yummy Top Isvaffel l/f","EVENTYR",3,"KRT",null,438.87,146.29,0,"Iscreme"]
["Fedt i Portionspakning","BEDSTEMO",1,"PK",null,101.13,101.13,0,"Olie & Fedtstoffer"]
["Fennikel","GRØNT",31.8,"KG",null,570.17999999999995,17.93018867924528,0,"Frisk Frugt og Grønt"]
["Fersken Halv i Juice","VIDECA",3,"DS",null,126.18,42.06,0,"Frugtkonserves"]
["Film PVC 8 my 0,45x300 m","MULTI",12,"RL",null,1013.16,84.429999999999993,0,"Papir Plastposer & Sække"]
["Film PVC Cham 10 my 0,45x300 m","MULTI",4,"RL",null,466.4,116.6,0,"Papir Plastposer & Sække"]
["Fishsauce Spicy World","SANTA M",1,"FL",null,22.78,22.78,0,"Saucer Soya m.v."]
["Fiskeben Torsk","CAT FISK",15,"KG",null,267.60000000000002,17.84,0,"Fisk, fersk"]
["Fiskefilet Paneret 100-130 g","NO NAME",10,"KRT",null,2281.2800000000002,228.12800000000001,0,"Fisk"]
["Flormelis DK","DANSUKKE",60,"PK",null,374.4,6.2399999999999993,0,"Melis & øvrige sukkerprodukter"]
["Fløde Double Cream 48% Øko","NATURMÆL",1,"DK",null,97.4,97.4,0,"Mælk & Smør"]
["Flødeost Arla/Cream Cheese 25%","ARLA PRO",1,"SP",null,87.89,87.89,0,"Ost"]
["Forloren Skildpadde","FAABORG",10,"DS",null,1013.4,101.34,0,"Kødkonserves m.m."]
["Forårsløg","GRØNT",33.76,"KG",null,1069.04,31.665876777251185,0,"Frisk Frugt og Grønt"]
["Forårsrulle Classic Fyld 150 g","DALOON",54,"PS",null,2872.8,53.2,0,"Forårsruller m.v."]
["Frankfurter 110 g Frys","STEFF",2,"KRT",null,618,309,0,"Svinekødsprodukter"]
["Frankfurter Bacon/Ramsløg 125g","STEFF",2,"KRT",null,661.16,330.58,0,"Svinekødsprodukter"]
["Frankfurter Chili/Ched 125 g","STEFF",6,"PK",null,991.74,165.29,0,"Svinekødsprodukter"]
["Frankfurter Grov 125 g","STEFF",6,"PS",null,991.74,165.29,0,"Svinekødsprodukter"]
["Frankfurter Lille Klaus 125 g","STEFF",4,"KRT",null,1304.32,326.08,0,"Svinekødsprodukter"]
["Friskost Arla/Fresh Cheese 16%","ARLA PRO",1,"SP",null,87.85,87.85,0,"Ost"]
["Fritureolie","NO NAME",10,"DK",null,947.5,94.75,0,"Olie & Fedtstoffer"]
["Fuglegræs","GRØNT",0.42,"KG",null,138.91999999999999,330.76190476190476,0,"Frisk Frugt og Grønt"]
["Gamle Ole XL45+ ca 2 kg","ARLA OST",1.913,"KG",null,143.91,75.227391531625713,0,"Ost"]
["Gammeldags Flødeis Bourbonvan","PREMIER",9,"SP",null,1932.66,214.74,0,"Iscreme"]
["Gammeldags Flødeis Jordbær","PREMIER",2,"SP",null,429.5,214.75,0,"Iscreme"]
["Garn Snøre Drug Twine 250 g","MULTI",1,"STK",null,94.78,94.78,0,"Materiel Elpærer & Beklædning"]
["Glaskål friske","GRØNT",14,"KG",null,285,20.357142857142858,0,"Frisk Frugt og Grønt"]
["Gorgonzola Galbani Grøn","GALBANI",1.532,"KG",null,123.97,80.920365535248038,0,"Ost"]
["Granatæble","GRØNT",4.08,"KG",null,100.98,24.75,0,"Frisk Frugt og Grønt"]
["Grapefrugt Rød","GRØNT",9.24,"KG",null,180.32,19.515151515151516,0,"Frisk Frugt og Grønt"]
["Grillpølse 70 g Frys","STEFF",6,"KRT",null,1884.52,314.08666666666664,0,"Svinekødsprodukter"]
["Grillpølse Ost 82 g","STEFF",1,"KRT",null,361.49,361.49,0,"Svinekødsprodukter"]
["Grisefilet BBQ-Marineret","TENDER P",14.4,"KG",null,911.66,63.30972222222222,0,"Svinekødsprodukter"]
["Grisefilet Gravad","DELIKA",5.4909999999999997,"KG",null,612.79999999999995,111.60080131123657,0,"Pålæg"]
["Grisekam m/Sv u/Ben/Hofte Rids","D CROWN",38.81,"KG",null,1385.52,35.700077299665033,0,"Svinekød"]
["Grisekam u/Svær m/Ben","AB SLAGT",40.14,"KG",null,1627.28,40.540109616342797,0,"Svinekød"]
["Grisekamben BBQ Forstegt","VAN DM",19.760000000000002,"KG",null,1457.3,73.749999999999986,0,"Svinekødsprodukter"]
["Grisekamben Røget","AB SLAGT",25,"KG",null,1140,45.6,0,"Svinekødsprodukter"]
["Grisekotelet u/Ben","AB SLAGT",11.48,"KG",null,569.52,49.609756097560975,0,"Svinekød"]
["Grisekotelet u/Ben 140 g","CATERKØD",5.62,"KG",null,288.76,51.380782918149464,0,"Svinekød"]
["Grisemørbrad Afp u/Bimørbrad","CATERKØD",15.2,"KG",null,1045.76,68.8,0,"Svinekød"]
["Grisemørbrad m/Bimørbrad","D CROWN",10,"KRT",null,2480.5,248.05,0,"Svinekød"]
["Grisemørbrad u/Bimørbrad","D CROWN",1,"KRT",null,257.13,257.13,0,"Svinekød"]
["Grisemørbrad u/Streng","KABCO",20,"KG",null,937.8,46.89,0,"Svinekød"]
["Grisenakkefilet Afpudset 1327","D CROWN",16.190000000000001,"KG",null,592.54999999999995,36.599752933909812,0,"Svinekød"]
["Grisespoleben Løsfrossen","CATER F",20,"KG",null,1063.8,{"$f":"F182/C182","v":53.19},0,"Svinekød"]
["Grisesvær m/Fedt 5 mm","AB SLAGT",0.94,"KG",null,26.73,28.436170212765958,{"$f":"E183*G183","v":0},"Svinekød"]
["Gruyere Blok AOP 6-Mdr CH","LACTALIS",2.5680000000000001,"KG",null,495.73,193.04127725856699,0,"Ost"]
["Græskar Muscat","GRØNT",36,"KG",null,538.55999999999995,14.959999999999999,0,"Frisk Frugt og Grønt"]
["Græskarkerner","SUN ISLA",57,"PS",null,1927.5,33.815789473684212,0,"Kolonial"]
["Græskarrugbrød f/b","KOHBERG",4,"KRT",null,550.67999999999995,137.66999999999999,0,"Brød Bake Off"]
["Grønkål Kogt Sønderjysk Øko","SDJ-KÅL",12,"PK",null,339.12,28.26,0,"Grønsager Dybfrost"]
["Grønkål Øko","GRØNT",3,"KG",null,226.8,75.600000000000009,0,"Frisk Frugt og Grønt"]
["Grønkålblade Små","GRØNT",1.8,"KG",null,210.6,117,0,"Frisk Frugt og Grønt"]
["Grønlangkål Vendsyssel Alm Øko","GH FOOD",2,"KRT",null,451.16,225.58,0,"Grønsager Dybfrost"]
["Grøntsagsfond Konc 51 ltr","OSCAR",6,"FL",null,885.3,147.54999999999998,0,"Saucer Soya m.v."]
["Gulbeder","GRØNT",5,"KG",null,83.55,16.71,0,"Frisk Frugt og Grønt"]
["Gule Ærter","MØLLEREN",2,"KRT",null,266.7,133.35,0,"Kolonial"]
["Gulerødder 1 kg","GRØNT",8,"KG",null,67.5,8.4375,0,"Frisk Frugt og Grønt"]
["Gulerødder i Sæk","GRØNT",190,"KG",null,1452.1,7.642631578947368,0,"Frisk Frugt og Grønt"]
["Gulerødder m/Top","GRØNT",37.200000000000003,"KG",null,829.2,22.29032258064516,0,"Frisk Frugt og Grønt"]
["Gulerødder Mini m/Top","GRØNT",4,"KG",null,600,150,0,"Frisk Frugt og Grønt"]
["Gulerødder Mini Mix Farve","GRØNT",4.8,"KG",null,384,80,0,"Frisk Frugt og Grønt"]
["Gulerødder Tern","CATER",4,"PS",null,76.72,19.18,0,"Grønsager Dybfrost"]
["Gurkemeje","GRØNT",0.1,"KG",null,26.46,264.59999999999997,0,"Frisk Frugt og Grønt"]
["Gær 50 g","MALTESER",40,"STK",null,34,0.85,0,"Bageartikler"]
["Gær 500 g","MALTESER",65,"PK",null,295.05,4.5392307692307696,0,"Bageartikler"]
["Hamburgerryg Gammeldags Lux","CATERKØD",33.51,"KG",null,1576.31,47.039988063264701,0,"Svinekødsprodukter"]
["Hamburgerryg Kogt","CATERKØD",4.41,"KG",null,263.81,59.820861678004533,0,"Pålæg"]
["Hamburgerryg Rå 1/2","CATERKØD",35.53,"KG",null,1609.88,45.310441880101322,0,"Svinekødsprodukter"]
["Hansen Flødeis Chokolade Øko","HANSENS",7,"SP",null,1756.51,250.93,0,"Iscreme"]
["Hansen Flødeis Jordbær","HANSENS",3,"SP",null,672.93,224.30999999999997,0,"Iscreme"]
["Hansen Flødeis Jordbær Øko","HANSENS",2,"SP",null,477.96,238.98,0,"Iscreme"]
["Hansen Flødeis Pistacie","HANSENS",2,"SP",null,448.62,224.31,0,"Iscreme"]
["Hansen Flødeis Vanilje","HANSENS",3,"SP",null,706.56,235.51999999999998,0,"Iscreme"]
["Hansen Flødeis Vanilje Øko","HANSENS",4,"SP",null,955.92,238.98,0,"Iscreme"]
["Haricots Verts Fine","FRIGODAN",4,"PS",null,143,35.75,0,"Grønsager Dybfrost"]
["Hasselnøddekerner Afhindet","ODENSE M",3,"PK",null,673.39,224.46333333333334,0,"Nødder & Mandler"]
["Hasselnøddekerner Øko","SVANSØ",1,"PS",null,60.19,60.19,0,"Nødder & Mandler"]
["Havregryn Øko","KORNKAM",24,"PS",null,385.44,16.059999999999999,0,"Kolonial"]
["Hellefisk Optøet","CAT FISK",20,"KG",null,2699,134.94999999999999,0,"Fisk, fersk"]
["Hindbær","FRIGODAN",8,"PS",null,767.04,95.88,0,"Frugt Dybfrost"]
["Hindbær DK","GRØNT",1.25,"KG",null,212.5,170,0,"Frisk Frugt og Grønt"]
["Hindbær udenlandsk","GRØNT",4.875,"KG",null,890.47,182.66051282051282,0,"Frisk Frugt og Grønt"]
["Hindbærmarmelade Portion","RYNKEBY",3,"KRT",null,287.10000000000002,95.7,0,"Marmelade Syltetøj & Grød"]
["Hindbærpuré","ARDO",2,"PS",null,96.3,48.15,0,"Puré"]
["Hindbærpuré u/Sukker","BOIRON",2,"BK",null,189.6,94.8,0,"Puré"]
["Hjertemusling","CAT FISK",5,"KG",null,374.25,74.849999999999994,0,"Fisk, fersk"]
["Honning Portionsbæger DK","JAKOBSEN",3,"ÆSK",null,562.5,187.5,0,"Kolonial"]
["Honningskinke 1/2","DELITAST",1.7130000000000001,"KG",null,167.12,97.559836544074727,0,"Pålæg"]
["HotDogbrød Løs Skåret 3811","SCHULSTA",2,"KRT",null,378,189,0,"Brød Fast Food"]
["HotDogPølse 62 g Frys","STEFF",8,"KRT",null,2472,309,0,"Svinekødsprodukter"]
["HotDogPølse Big 62 g Køl","STEFF",4,"KRT",null,1381.68,345.42,0,"Svinekødsprodukter"]
["HP Sauce","HP SAUCE",24,"FL",null,419.52,17.48,0,"Saucer Soya m.v."]
["Hummerfond Konc 51 ltr","OSCAR",1,"FL",null,181.03,181.03,0,"Saucer Soya m.v."]
["Hummerhaler Løsfr 70/120 CL","NORDIC S",5,"PS",null,528.29999999999995,105.66,0,"Fisk"]
["Hvedekerner Durum Forkogt","HAVNEMØL",1,"PS",null,25.46,25.46,0,"Kolonial"]
["Hvedemel","AMO",1,"PS",null,10.14,10.14,0,"Mel"]
["Hvedemel Durum","AMO",50,"PS",null,761.5,15.23,0,"Mel"]
["Hvedemel Elephant","VALSEMØL",78,"SÆK",null,5539.7,71.021794871794867,0,"Mel"]
["Hvedemel Fuldkorn","AMO",30,"PS",null,247.8,8.26,0,"Mel"]
["Hvedemel Fuldkorn","VICTORY",12,"SÆK",null,732,61,0,"Mel"]
["Hvedemel Reform Øko","HAVNEMØL",2,"SÆK",null,147.5,73.75,0,"Mel"]
["Hvedemel Tipo 00 Grano Tenero","VALSEMØL",2,"SÆK",null,156.26,78.13,0,"Mel"]
["Hvederasp Fin","STRUER",3,"PS",null,133.13999999999999,44.379999999999995,0,"Kolonial"]
["Hvid Arla UF 40+","APETINA",1,"DS",null,222.38,222.38,0,"Ost"]
["Hvidkål","GRØNT",40,"KG",null,260.76,6.5190000000000001,0,"Frisk Frugt og Grønt"]
["Hvidkål Sommer","GRØNT",4.5,"KG",null,55.29,12.286666666666667,0,"Frisk Frugt og Grønt"]
["Hvidløg Friske","GRØNT",4,"KG",null,217.19,54.297499999999999,0,"Frisk Frugt og Grønt"]
["Hvidløg i net 200 gr","GRØNT",1.2,"KG",null,55.5,{"$f":"F246/C246","v":46.25},0,"Frisk Frugt og Grønt"]
["Hvidløg i net 500 gr","GRØNT",2,"KG",null,63,31.5,{"$f":"E247*G247","v":0},"Frisk Frugt og Grønt"]
["Hvidløg på Ranke","GRØNT",1,"KG",null,36.29,36.29,0,"Frisk Frugt og Grønt"]
["Hvidløgspaté","DELIKA",6,"STK",null,291.24,48.54,0,"Pålæg"]
["Hvidvin Ed´s Creek BIB","ED´S C",17,"STK",null,2043.96,120.23294117647059,0,"Vin"]
["Hvidvin Luigi Leonardo","SGARZI",2,"FL",null,76.959999999999994,38.479999999999997,0,"Vin"]
["Hyldeblomstsaft 1+4","RYNKEBY",36,"STK",null,519.84,14.440000000000001,0,"Saft Juice & Læskedrik"]
["Hytteost 1,5%","CHEASY",6,"BG",null,112.02,18.669999999999998,0,"Ost"]
["Hønsebouillon Pasta 40 ltr","KNORR",2,"DS",null,238,119,0,"Tørsupper, Tørsauce m.v."]
["Hønsesalat","K-SALAT",26,"BK",null,1546.48,59.480000000000004,0,"Salater"]
["Hønsesalat Delikatesse","K-SALAT",2,"BK",null,145.02000000000001,72.510000000000005,0,"Salater"]
["Hørfrø","SUN ISLA",42,"PS",null,441.96,10.522857142857143,0,"Kolonial"]
["Håndværker","METTE M",1,"KRT",null,96.49,96.49,0,"Brød Bake Off"]
["Håndværker 3-Korn","METTE M",4,"KRT",null,431.36,107.84,0,"Brød Bake Off"]
["Håndværker Fuldkorn","METTE M",1,"KRT",null,107.84,107.84,0,"Brød Bake Off"]
["Håndværker m/Blå Birkes f/b","SCHULSTA",1,"KRT",null,68.42,68.42,0,"Brød Bake Off"]
["Iceberg frisk","GRØNT",39.9,"KS",null,910.35,22.815789473684212,0,"Frisk Frugt og Grønt",null,null,null,null,null,null,null,null,null,null,null,null,null,1]
["Ingefær","GRØNT",6.03,"KG",null,188.14,31.200663349917079,0,"Frisk Frugt og Grønt"]
["Italiensk Salat","K-SALAT",8,"BG",null,301.83999999999997,37.729999999999997,0,"Salater"]
["Italiensk Salat Delikatesse","GRAASTEN",4,"BT",null,146.76,36.69,0,"Salater"]
["Italiensk Salat Økonomi","K-SALAT",3,"BG",null,75,25,0,"Salater"]
["Jalapenos Rød Skåret USA","SANTA M",1,"BT",null,142.99,142.99,0,"Grøntkonserves"]
["Jomfruhummerhaler","CAT FISK",5,"KG",null,747.5,149.5,0,"Fisk, fersk"]
["Jomfruhummerhaler Pil Rå 20/30","NORDIC S",5,"PS",null,1044.5999999999999,208.92,0,"Fisk"]
["Jomfruhummerskrog Rå","NORDIC S",1,"KRT",null,115.63,115.63,0,"Fiskeprodukter"]
["Jordbær 1","FRIGODAN",20,"PS",null,1394,69.7,0,"Frugt Dybfrost"]
["Jordbær DK","GRØNT",5,"KG",null,250,50,0,"Frisk Frugt og Grønt"]
["Jordbær DK Tunnel/Drivhus","GRØNT",12,"KG",null,960,80,0,"Frisk Frugt og Grønt"]
["Jordbær udland","GRØNT",34,"KG",null,2094,61.588235294117645,0,"Frisk Frugt og Grønt"]
["Jordbærmarmelade Portion","RYNKEBY",5,"KRT",null,528,105.6,0,"Marmelade Syltetøj & Grød"]
["Jordskokker","GRØNT",33,"KG",null,706.05,21.395454545454545,0,"Frisk Frugt og Grønt"]
["Kaffe Professionel Aroma","KARAT K",24,"PS",null,715.68,29.819999999999997,0,"Kaffe, The & Chokoladedrik"]
["Kaffebønner Bæredygtig/Øko","GEVALIA",8,"PS",null,864,108,0,"Kaffe, The & Chokoladedrik"]
["Kaffebønner Exclusive","LÖFBERGS",18,"PS",null,3096,172,0,"Kaffe, The & Chokoladedrik"]
["Kaffefilter Skål 250/90 Hvid","MULTI",1,"PK",null,27.94,27.94,0,"Papir Plastposer & Sække"]
["Kakao 20-22% s/f","IQ FOOD",4,"PS",null,355.72,88.93,0,"Bageartikler"]
["Kalkunbryst Luxus Varmrøget","DELITAST",7.7279999999999998,"KG",null,614.38,79.500517598343691,0,"Pålæg"]
["Kalkunbryst Paprika","TULIP",3.9940000000000002,"KG",null,316.27999999999997,79.188783174762136,0,"Pålæg"]
["Kalkunbryst Paprika Kogt/Røget","DELITAST",7.7,"KG",null,539.08000000000004,70.010389610389609,0,"Pålæg"]
["Kalkunbryst u/Skind ca 1 kg","DENCON",10,"KG",null,445.3,44.53,0,"Ænder & Kalkuner"]
["Kalv/Flæsk 25/75 Hakket 12%","CATERKØD",8,"KG",null,318,39.75,0,"Svinekød"]
["Kalv/Flæsk 25/75 Hakket 8-12%","D CROWN",38,"BK",null,4207.1400000000003,110.7142105263158,0,"Svinekød"]
["Kalv/Flæsk Hakket 10% vac","AB SLAGT",30,"KG",null,1415.7,47.190000000000005,0,"Svinekød"]
["Kalv/Flæsk Hakket Køl","AB SLAGT",50,"KG",null,2117.5,42.35,0,"Svinekød"]
["Kalveculotte","CATER F",34.590000000000003,"KG",null,2513.31,72.660017346053763,0,"Kalvekød"]
["Kalveculotte DK","DC BEEF",20.03,"KG",null,2379.56,118.79980029955067,0,"Kalvekød"]
["Kalvefilet 4+","HIMMERLA",17.84,"KG",null,2087.2800000000002,117.00000000000001,0,"Kalvekød"]
["Kalvefond Konc 51 ltr","OSCAR",3,"FL",null,455.85,151.95000000000002,0,"Saucer Soya m.v."]
["Kalvefond Signature","OSCAR",60,"STK",null,4535.7,75.594999999999999,0,"Saucer Soya m.v."]
["Kalvemørbrad 1,5+ DK Køl","DK KALV",82.88,"KG",null,15402.3,185.83856177606177,0,"Kalvekød"]
["Kalvemørbrad m/Streng","GASTRO K",20.7,"KG",null,4001.93,193.32995169082125,0,"Kalvekød"]
["Kalvestriploin KalveZ Køl","DC BEEF",81.622,"KG",null,9053.32,110.91764475264021,0,"Kalvekød"]
["Kammerjunkere Original","K VOLF",26,"PS",null,475.04,18.270769230769233,0,"Kiks Kager & Snacks"]
["Kammusling u/Rogn 10/20","PLANETS",4,"PS",null,797.16,199.29,0,"Fisk"]
["Kammusling u/Rogn 15/20","CAT FISK",1,"KG",null,224.25,224.25,0,"Fisk, fersk"]
["Karrysalat","K-SALAT",22,"BK",null,842.82,38.31,0,"Salater"]
["Karrysild Bidder MSC","LAUNIS",4,"SP",null,436.32,109.08,0,"Fiskekonserves"]
["Karrysild Snitter","DANSK C",2,"SP",null,401.36,200.68,0,"Fiskekonserves"]
["Karrysild Snitter MSC","TENAX",12,"SP",null,2408.16,200.67999999999998,0,"Fiskekonserves"]
["Karse i Bakke m/Låg","GRØNT",0.5,"KG",null,30,60,0,"Frisk Frugt og Grønt"]
["Kartofler 15 kg i net","GRØNT",300,"KG",null,1885.8,6.2859999999999996,0,"Frisk Frugt og Grønt"]
["Kartofler 15 kg i net vildmose","GRØNT",90,"KG",null,540,6,0,"Frisk Frugt og Grønt"]
["Kartofler 2 kg vildmose","GRØNT",16,"KG",null,132,8.25,0,"Frisk Frugt og Grønt"]
["Kartofler i Glas","DIVERSE",12,"GL",null,76.2,6.3500000000000005,0,"Grøntkonserves"]
["Kartofler Jævne 40-60 1 kg Øko","SØRIS",30,"KG",null,540,{"$f":"F310/C310","v":18},0,"Frisk Frugt og Grønt"]
["Kartofler Mini Petit 25/30 mm","GRØNT",112,"KG",null,1680,15,{"$f":"E311*G311","v":0},"Frisk Frugt og Grønt"]
["Kartofler Nye Danske","GRØNT",14,"KG",null,378,27,0,"Frisk Frugt og Grønt"]
["Kartofler Nye DK Øko","SØRIS",7,"KG",null,102.62,14.66,0,"Frisk Frugt og Grønt"]
["Kartofler Nye petit Udenland","GRØNT",7,"KG",null,102.41,14.629999999999999,0,"Frisk Frugt og Grønt"]
["Kartofler Petit Vask vildmose","GRØNT",84,"KG",null,913.5,10.875,0,"Frisk Frugt og Grønt"]
["Kartofler Søde","GRØNT",12,"KG",null,207,17.25,0,"Frisk Frugt og Grønt"]
["Kartofler Vasket Petit Øko","SØRIS",28,"KG",null,504,18,0,"Frisk Frugt og Grønt"]
["Kartofler vildmose 30/38 mm","GRØNT",224,"KG",null,3108.35,13.8765625,0,"Frisk Frugt og Grønt"]
["Kebab Döner Okse Stegt Skiver","CATER Q",15,"PS",null,922.5,61.5,0,"Oksekødsprodukter"]
["Kidneybønner Røde","UNIFOOD",15,"PS",null,339.6,22.64,0,"Kolonial"]
["Kikærter Neutral 10 mm","UNIFOOD",3,"PS",null,71.61,23.87,0,"Kolonial"]
["Kikærter/Garbanzobønner EasyB","BONDUELL",3,"PS",null,131.25,43.75,0,"Grøntkonserves"]
["Kims Peanuts Saltet 1 kg","KIMS",2,"PS",null,84,42,0,"Kiks Kager & Snacks"]
["Kippers i Olie","GLYNGØRE",72,"DS",null,1213.2,16.850000000000001,0,"Fiskekonserves"]
["Kiwifrugt","GRØNT",24,"KG",null,743.85,30.993750000000002,0,"Frisk Frugt og Grønt"]
["KnoldSelleri NL","GRØNT",42,"KG",null,329.92,7.8552380952380956,0,"Frisk Frugt og Grønt"]
["Kogeflæsk u/Ben Letsalt Køl","AB SLAGT",21.38,"KG",null,910.79,42.600093545369504,0,"Svinekødsprodukter"]
["Kokkesalt Groft m/Jod","JOZO",20,"PK",null,74.2,3.71,0,"Krydderier"]
["Kokosmel Mellemfin","CGO",3,"PS",null,301.92,100.64,0,"Mel"]
["Kokosmælk 17-19%","ASIANWOK",6,"DS",null,346.74,57.79,0,"Kolonial"]
["Koldcreme/Top Cream","ENGELH",5,"PS",null,297.08999999999997,59.417999999999992,0,"Bageartikler"]
["Koriander, i Bundt","GRØNT",0.8,"KG",null,240,300,0,"Frisk Frugt og Grønt"]
["Krosalami Peber","CATER F",7.86,"KG",null,487.48,62.020356234096695,0,"Pålæg"]
["Krosalami Ø105 mm 1/1","DELIKA",12.1,"KG",null,1119.49,92.519834710743808,0,"Pålæg"]
["Krydderi Barbecue","KRYTA",1,"PS",null,46.34,46.34,0,"Krydderier"]
["Krydderi Barbecue Smoky","SANTA M",1,"DS",null,50.11,50.11,0,"Krydderier"]
["Krydderi Chili Knust","KRYTA",1,"DS",null,72.72,72.72,0,"Krydderier"]
["Krydderi Gurkemeje","SANTA M",1,"DS",null,48.7,48.7,0,"Krydderier"]
["Krydderi Kanel Stødt","SUNBEST",6,"BT",null,213,35.5,0,"Krydderier"]
["Krydderi Karry Madras Poonjiaj","POONJIAJ",10,"DS",null,548.26,54.826000000000001,0,"Krydderier"]
["Krydderi Karry Ostindisk","SUNBEST",1,"DS",null,36.39,36.39,0,"Krydderier"]
["Krydderi Koriander Hel","SANTA M",1,"DS",null,43.51,43.51,0,"Krydderier"]
["Krydderi Løgpulver","OSCHÄTZ",1,"PK",null,80.5,80.5,0,"Krydderier"]
["Krydderi Paneng Curry Red","SANTA M",1,"DS",null,99.03,99.03,0,"Krydderier"]
["Krydderi Paprika Edelsüss","KRYTA",1,"DS",null,58.72,58.72,0,"Krydderier"]
["Krydderi Paprika Edelsüss Strø","HAYA4YOU",3,"DS",null,110.76,36.92,0,"Krydderier"]
["Krydderi Paprika Rosen Ungarsk","SUNBEST",4,"BT",null,308.16000000000003,77.040000000000006,0,"Krydderier"]
["Krydderi Paprika Røget","SANTA M",1,"DS",null,50.65,50.65,0,"Krydderier"]
["Krydderi Paprikapulver","SANTA M",1,"DS",null,63.65,63.65,0,"Krydderier"]
["Krydderi Peber Sort Groftmalet","SANTA M",2,"DS",null,227.4,113.7,0,"Krydderier"]
["Krydderi Peber Sort Hel","SANTA M",4,"DS",null,525.55999999999995,131.38999999999999,0,"Krydderier"]
["Krydderi Peber Sort Hel Strøds","HAYA4YOU",2,"DS",null,158,79,0,"Krydderier"]
["Krydderi Peber Sort Stødt","OSCHÄTZ",4,"PS",null,393.24,98.31,0,"Krydderier"]
["Krydderi Spidskommen","SANTA M",4,"DS",null,296.3,74.075000000000003,0,"Krydderier"]
["Krydderi Spidskommen Pulv Strø","HAYA4YOU",2,"DS",null,77.22,38.61,0,"Krydderier"]
["Krydderimix Garam Masala","SANTA M",1,"DS",null,103.85,103.85,0,"Krydderier"]
["Kryddermarinerede Sild","DANSK C",1,"SP",null,181.86,181.86,0,"Fiskekonserves"]
["Kryddermarinerede Sild Snitter","DANSK C",4,"SP",null,727.44,181.86,0,"Fiskekonserves"]
["Kryddersild Gammeldags Modnet","HIRTSHAL",6,"SP",null,1554,259,0,"Fiskekonserves"]
["Kvark Arla Pro 0,3%","ARLA PRO",2,"SP",null,257.68,128.84,0,"Mælk & Smør"]
["Kyll Brystfilet 88% 100-120 g","ROSE P",27,"PS",null,3219.24,119.2311111111111,0,"Kyllinger & Høns"]
["Kyll Brystfilet 88% 120-140 g","ROSE P",2,"PS",null,238,119,0,"Kyllinger & Høns"]
["Kyll Brystfilet 88% 140-180 g","ROSE P",54,"PS",null,6453.62,119.51148148148148,0,"Kyllinger & Høns"]
["Kyll Filet u/Ind 25% 120-140g","DANPO",1,"PS",null,128.85,128.85,0,"Kyllinger & Høns"]
["Kyll Kot m/Vingeb/Sk 150-210 g","KIVAN",6,"PS",null,576,96,0,"Kyllinger & Høns"]
["Kylling Grill 1200 g","CHEFS CL",60,"STK",null,1684.8,28.08,0,"Kyllinger & Høns"]
["Kylling Griller 1300 g","ROSE P",120,"STK",null,3556.8,29.64,0,"Kyllinger & Høns",1]
["Kyllingebryst m/Kalkunbacon","DELITAST",1.7,"KG",null,150.37,88.452941176470588,0,"Pålæg"]
["Kyllingebryst m/Provencale","DELITAST",4.6360000000000001,"KG",null,336.06,72.489214840379631,0,"Pålæg"]
["Kyllingebryst m/Skind 130-150g","ROSE P",6,"PS",null,810,135,0,"Kyllinger & Høns"]
["Kyllingebryst Persille/Ananas","DELITAST",2.6840000000000002,"KG",null,191.29,71.270491803278688,0,"Pålæg"]
["Kyllingebryst Pyramide Provenc","DELITAST",13.076000000000001,"KG",null,981.36,75.050474151116546,0,"Pålæg"]
["Kyllingebryst Spinat","DELITAST",5.5010000000000003,"KG",null,365.93,66.520632612252314,0,"Pålæg"]
["Kyllingefond Stegt Signature","OSCAR",19,"STK",null,1332.37,{"$f":"F374/C374","v":70.124736842105264},0,"Saucer Soya m.v."]
["Kyllingerulle Urter NL","DELITAST",2.5920000000000001,"KG",null,190.56,73.518518518518519,{"$f":"E375*G375","v":0},"Pålæg"]
["Kyllingesalami","DELITAST",6.11,"KG",null,440.71,72.129296235679206,0,"Pålæg"]
["Kyllingeskrog","HOPBALLE",20,"KG",null,216,10.8,0,"Kyllinger & Høns"]
["Kyllingfond Signature","OSCAR",60,"PK",null,4078.44,67.974000000000004,0,"Saucer Soya m.v."]
["Kærgården Portionsbæger","KÆRGÅRDE",65,"ÆSK",null,4036.18,62.095076923076924,0,"Mælk & Smør"]
["Kærgården Portionsbæger","KÆRGÅRDE",5,"ÆSK",null,319.76,63.951999999999998,0,"Mælk & Smør"]
["Kærnemælk Arla 0,5%","ARLA",125,"STK",null,1016.25,8.1300000000000008,0,"Mælk & Smør"]
["Kødboller 3 g","TULIP",10,"PS",null,1061.5,106.15,0,"Suppe & boller"]
["Kødpølse Firkantet","CATER F",3,"KG",null,140.25,46.75,0,"Pålæg"]
["Kørvel i bundt","GRØNT",2.5,"KG",null,750,300,0,"Frisk Frugt og Grønt"]
["Kørvel Løst Pakket i Bakke","LEGRO",0.35,"KG",null,174.09,497.40000000000003,0,"Frisk Frugt og Grønt"]
["Kålpølse Grov 65 g","CATERKØD",2,"KRT",null,363.92,181.96,0,"Svinekødsprodukter"]
["Ladyfingers/Savoiardi","MARINI",20,"PK",null,154.80000000000001,7.74,0,"Kiks Kager & Snacks"]
["Laks Gravad Gourmet Sk 9-1400g","ROYAL G",4.6340000000000003,"KG",null,919.57,198.43979283556322,0,"Fisk"]
["Laks Røget Gourmet Sk 9-1400 g","ROYAL G",8.9559999999999995,"KG",null,1781.67,198.9359088878964,0,"Fisk"]
["Laks Røget Skiver 900-1400 g","ROYAL G",5.016,"KG",null,852.72,170,0,"Fisk"]
["Laksefilet 5/6 D Benfri Norsk","CAT FISK",11.14,"KG",null,1470.48,132,0,"Fisk, fersk"]
["Laksefilet Afskællet","CAT FISK",13.79,"KG",null,1712.72,124.20014503263235,0,"Fisk, fersk",null,null,null,null,1]
["Laksefilet m/Sk D-Tr 14-1800 g","POLAR S",64.099000000000004,"KG",null,8526.41,133.01939187818843,0,"Fisk"]
["Lakserøgede Sild MSC","TENAX",6,"SP",null,809.04,134.84,0,"Fiskekonserves"]
["Lammefond Signature","OSCAR",1,"STK",null,80.44,80.44,0,"Saucer Soya m.v."]
["Lammekølle m/Ben u/Nøgleben","KS FOOD",9.1660000000000004,"KG",null,564.72,61.610298930831334,0,"Lam & Vildt m.v."]
["Landbrød Gorm Rustikt","METTE M",1,"KRT",null,96.75,96.75,0,"Brød Bake Off"]
["Lasagneplader Gastro 19x24cm","PONTE S",1,"KRT",null,66.94,66.94,0,"Kolonial"]
["Lasagneplader Gastronom","CAMPIONI",1,"KRT",null,175.09,175.09,0,"Kolonial"]
["Letmælk Arla Frisk 1,5%","ARLA F",675,"STK",null,5427,8.0399999999999991,0,"Mælk & Smør"]
["Letmælk Harmonie 1,5% 1L Øko","HARMONIE",11,"STK",null,98.67,8.9700000000000006,0,"Mælk & Smør"]
["Leverpostej Kylling Bagt Øko","CATERKØD",12,"STK",null,333.6,27.8,0,"Pålæg"]
["Leverpostej Rå","CATER F",72,"STK",null,1877.04,26.07,0,"Pålæg"]
["Likør Kahlua 20%","KAHLUA",1,"FL",null,137.75,137.75,0,"Spiritus"]
["Likør Luxardo Amaretto 28%","LUXARDO",1,"FL",null,116,116,0,"Spiritus"]
["Limeblade Tørret","GRØNT",0.25,"KG",null,75,300,0,"Frisk Frugt og Grønt"]
["Limefrugt","GRØNT",19,"KG",null,415.95,21.892105263157895,0,"Frisk Frugt og Grønt"]
["Limesaft","SVANSØ",1,"FL",null,18.61,18.61,0,"Saft Juice & Læskedrik"]
["Luksusrogn","AMANDA",40,"DS",null,1360,34,0,"Fiskekonserves"]
["Luksusrogn MSC","AMANDA",24,"DS",null,351.84,14.659999999999998,0,"Fiskekonserves"]
["Løg -2 kg","GRØNT",4,"KG",null,28.5,7.125,0,"Frisk Frugt og Grønt"]
["Løg Tern","CATER",6,"PS",null,145.69999999999999,24.283333333333331,0,"Grønsager Dybfrost"]
["Løg-10 kg","GRØNT",190,"KG",null,809.3,4.2594736842105263,0,"Frisk Frugt og Grønt"]
["Majs AA Super Sweet","FRIGODAN",4,"PS",null,175.52,43.88,0,"Grønsager Dybfrost"]
["Majsgryn Polenta Fin","VIVIEN P",6,"PS",null,87.24,14.54,0,"Kolonial"]
["Majskolbe","GRØNT",31.16675,"KG",null,443.85,14.241138392678096,0,"Frisk Frugt og Grønt"]
["Majsstivelse","MAIZENA",3,"PK",null,206.82,68.94,0,"Kolonial"]
["Makrel i Tomat MSC","DRONNING",18,"DS",null,1536.3,85.35,0,"Fiskekonserves"]
["Makroner","K VOLF",16,"PS",null,208.64,13.04,0,"Kiks Kager & Snacks"]
["Maldon Seasalt","MALDON",10,"SP",null,1972.5,197.25,0,"Krydderier"]
["Malt Flydende Mørk Byg","BAKELS",12,"FL",null,627.6,52.300000000000004,0,"Bageartikler"]
["Maltmel Mørk Byg","CONDI",1,"BT",null,54.95,54.95,0,"Bageartikler"]
["Mandelmel","SUN ISLA",6,"PS",null,750,125,0,"Mel"]
["Mandelsplitter Blancheret","ABL FOOD",1,"PS",null,134.91,134.91,0,"Nødder & Mandler"]
["Mandler Blancheret Hel","ABL FOOD",1,"PS",null,142.32,142.32,0,"Nødder & Mandler"]
["Mandler Hel m/Hinde","ABL FOOD",16,"PS",null,1803.84,112.74,0,"Nødder & Mandler"]
["Mango Chutney Hot","CERVERA",12,"GL",null,175.92,14.659999999999998,0,"Saucer Soya m.v."]
["Mango Chutney Sweet","CERVERA",12,"GL",null,175.92,14.659999999999998,0,"Saucer Soya m.v."]
["Mangofrugt ReadyToEat","GRØNT",8,"KG",null,312,39,0,"Frisk Frugt og Grønt"]
["Marcipan Bittermasse 00","ODENSE M",10,"PK",null,1191.5999999999999,119.16,0,"Chokolade & Marcipan"]
["Marcipan Kranse XX","ODENSE M",40,"PK",null,5462,136.55000000000001,0,"Chokolade & Marcipan"]
["Marinerede Sild Gammeldags","HIRTSHAL",4,"SP",null,1036,259,0,"Fiskekonserves"]
["Marinerede Sild Gammeldags","HAVFRUE",7,"SP",null,1365.45,195.06428571428572,0,"Fiskekonserves"]
["Marinerede Sild Snitter","DANSK C",2,"SP",null,363.72,181.86,0,"Fiskekonserves"]
["Mascarpone Galbani 80+","GALBANI",16,"STK",null,627.20000000000005,39.200000000000003,0,"Ost"]
["Mayonnaise","K-SALAT",60,"FL",null,673.8,11.229999999999999,0,"Salater"]
["Mayonnaise 80%","GRAASTEN",12,"FL",null,160.32,13.36,0,"Salater"]
["Mayonnaise Cater 80%","DANSK C",1,"SP",null,65.53,{"$f":"F438/C438","v":65.53},0,"Salater"]
["Medister Røget Ring","TULIP",24,"STK",null,662.88,27.62,{"$f":"E439*G439","v":0},"Pålæg"]
["Medisterpølse Grovhakket","CATERKØD",54,"PK",null,2359.8000000000002,43.7,0,"Svinekødsprodukter"]
["Medisterpølse Inge","D CROWN",16,"PK",null,763.2,47.7,0,"Svinekødsprodukter"]
["Medisterpølse Vitalius","VITALIUS",7,"PK",null,390.95,55.85,0,"Svinekødsprodukter"]
["Melboller","TULIP",5,"PS",null,331,66.2,0,"Suppe & boller"]
["Melon Cantaloupe","GRØNT",55,"KG",null,1057.5,19.227272727272727,0,"Frisk Frugt og Grønt"]
["Melon Galia","GRØNT",35,"KG",null,735,21,0,"Frisk Frugt og Grønt"]
["Melon Honning","GRØNT",86.8,"KG",null,1368.36,15.764516129032257,0,"Frisk Frugt og Grønt"]
["Melon Vand","GRØNT",98.09,"KG",null,1067.48,10.882658782750536,0,"Frisk Frugt og Grønt"]
["Minimælk Arla 0,4%","ARLA F",540,"STK",null,4152.6000000000004,7.69,0,"Mælk & Smør"]
["Minimælk Harmonie 0,4% Øko","HARMONIE",85,"STK",null,704.65,8.2899999999999991,0,"Mælk & Smør"]
["Mozzarella Galbani Orig Ital","GALBANI",24,"PS",null,180.48,7.52,0,"Ost"]
["Mozzarella Revet 40+","FALENGR",24,"PS",null,1053.54,43.897500000000001,0,"Ost"]
["Mozzarella Revet 40+ 1 kg","ARLA PRO",22,"PS",null,820.5,37.295454545454547,0,"Ost"]
["Mynte i bdt","GRØNT",0.7,"KG",null,210,300,0,"Frisk Frugt og Grønt"]
["Mælkepulver Automat Topping","GEVALIA",24,"PS",null,1539,64.125,0,"Kolonial"]
["Møn Ostekiks Assorteret","K VOLF",12,"ÆSK",null,267.60000000000002,22.3,0,"Kiks Kager & Snacks"]
["Nakkefilet Afpudset 1327","D CROWN",76.38,"KG",null,3127.17,40.942262372348786,0,"Svinekød"]
["Nektarin","GRØNT",32.5,"KG",null,438.75,13.5,0,"Frisk Frugt og Grønt"]
["Nougat 1","ODENSE M",6,"PK",null,895.62,149.27000000000001,0,"Chokolade & Marcipan"]
["Nutella Hasselnøddecreme Port","NUTELLA",17,"KRT",null,4407.45,259.26176470588234,0,"Kolonial"]
["Oksebryst Sprængt Kogt","CGO KØD",8.31,"KG",null,915.43,110.16004813477737,0,"Pålæg"]
["Okseentrecote 2,5+ Grainfed","RIOLUCIA",22.08,"KG",null,4146.84,187.80978260869568,0,"Oksekød"]
["Oksefond Signature","OSCAR",60,"PK",null,3982.8,66.38000000000001,0,"Saucer Soya m.v.",null,null,null,null,null,null,null,null,null,null,null,null,null,null,null,null,null,null,null,null,1]
["Oksegullasch af Okseklump Køl","AB SLAGT",15.35,"KG",null,1246.1099999999999,81.179804560260578,0,"Oksekød"]
["Okseinderlår u/Kappe GF 4-5 kg","RIOLUCIA",29.64,"KG",null,1900.22,64.109986504723352,0,"Oksekød"]
["Oksekød Hak Max 12% Køl","AB SLAGT",100.68,"KG",null,4798.41,47.660011918951128,0,"Oksekød",null,null,null,null,null,null,null,null,null,null,null,null,null,12]
["Oksekød Hakket 12% 24-Timer","INCO KØD",15.04,"KG",null,690.34,45.900265957446813,0,"Oksekød"]
["Oksekød Hakket 8-12%","DC BEEF",64,"BK",null,7852.16,122.69,0,"Oksekød"]
["Oksekød Hakket Max 10% Fedt","AB SLAGT",29.78,"KG",null,1712.35,57.499999999999993,0,"Oksekød"]
["Oksekød Hakket Max 12% vac","AB SLAGT",50,"KG",null,2567.5,51.35,0,"Oksekød"]
["Oksemarv","DRUMLIN",1,"KG",null,89.5,89.5,0,"Oksekød"]
["Oksemørbrad 2,2+ NZ","CARMO",14.083,"KG",null,2762.94,196.18973230135626,0,"Oksekød"]
["Oksemørbrad u/Str 1,8+ Køl","HIMMERLA",4.2,"KG",null,883.39,210.33095238095237,0,"Oksekød"]
["Oksemørbrad u/Streng 1,8-2,3","PRIMA V",18.725000000000001,"KG",null,4643.8,248,0,"Oksekød"]
["Oksesalami","DELITAST",2.21,"KG",null,177.31,80.230769230769226,0,"Pålæg"]
["Oksespegepølse","CATERKØD",1.46,"KG",null,129.53,88.719178082191789,0,"Pålæg"]
["Oksestriploin 5+","UNIKA",19.059999999999999,"KG",null,2168.65,113.78016789087094,0,"Oksekød"]
["Oksestriploin 5+ AU Køl","KS FOOD",80.430000000000007,"KG",null,13628.49,169.44535621036925,0,"Oksekød",null,null,null,null,null,null,null,null,null,null,null,null,null,null,null,null,null,null,null,null,1]
["Oksestriploin 5+ Grainfed","RIOLUCIA",38.18,"KG",null,6181.34,161.89994761655316,0,"Oksekød"]
["Oksestroganoff af Okseklump","AB SLAGT",9.9600000000000009,"KG",null,808.55,81.17971887550199,0,"Oksekød"]
["Oksetykkam Delt i Net Køl","CATERKØD",15.37,"KG",null,870.4,56.629798308392978,0,"Oksekød"]
["Oliven Kalamata Græsk","SVANSØ",2,"SP",null,181.26,90.63,0,"Grøntkonserves"]
["Oliven Kalamata PDO","ILIADA",1,"BT",null,113.69,113.69,0,"Grøntkonserves"]
["Oliven Manzanilla Sort u/Sten","PARADISO",2,"GL",null,27.62,13.81,0,"Grøntkonserves"]
["Oliven Sort u/Sten","IMPORT",3,"GL",null,78.66,26.22,0,"Grøntkonserves"]
["Oliven Sort u/Sten","VERIBEST",1,"DS",null,67.55,67.55,0,"Grøntkonserves"]
["Olivenolie Jomfru Extra","ILIADA",4,"FL",null,288.92,72.23,0,"Olie & Fedtstoffer"]
["Olivenolie Jomfru Extra","LE PEDRI",1,"DK",null,240.75,240.75,0,"Olie & Fedtstoffer"]
["Olivenolie Jomfru Extra Class","SVANSØ",2,"FL",null,122.8,61.4,0,"Olie & Fedtstoffer"]
["Olivenolie Jomfru Extra PET","LE PEDRI",29,"FL",null,1368.94,47.204827586206896,0,"Olie & Fedtstoffer"]
["Ostetern Hvid Puck 17% 500 g","PUCK",80,"STK",null,1683.68,21.045999999999999,0,"Ost"]
["Overtræk Chokoknap Hvid 28%","CALLEBAU",1,"PS",null,251.55,251.55,0,"Chokolade & Marcipan"]
["Overtræk Mælk Knap 33,6%","CALLEBAU",1,"PS",null,273.18,273.18,0,"Chokolade & Marcipan"]
["Overtræk Mørk 57,7% Knapper","CALLEBAU",6,"PS",null,1435.5,239.25,0,"Chokolade & Marcipan"]
["Overtræk Mørk 70,5% Knapper","CALLEBAU",2,"PS",null,484.64,242.32,0,"Chokolade & Marcipan"]
["Oystersauce","SANTA M",12,"FL",null,425.28,35.44,0,"Saucer Soya m.v."]
["Pandekage m/Sukker Foldet 55 g","DANÆG",15,"KRT",null,2224.1999999999998,148.28,0,"Forårsruller m.v."]
["Pandekage/Crepe ca 55 g","DANÆG",2,"KRT",null,243,121.5,0,"Forårsruller m.v."]
["Pankorasp Breadcrumbs","SAMLIP",5,"PS",null,203.85,40.769999999999996,0,"Kiks Kager & Snacks"]
["Parmaskinke u/Ben 1/4","VILLANI",5.4050000000000002,"KG",null,1260.6600000000001,233.23959296947271,0,"Pålæg"]
["Parmesan Reggiano 1/16 32+","LACTALIS",21.321999999999999,"KG",null,2759.07,129.40015007972988,0,"Ost"]
["Partypølse 50 g Frys","NORMEAT",1,"KRT",null,184.8,184.8,0,"Svinekødsprodukter"]
["Partyskinke Kogt Køl","THEILGÅR",3.5659999999999998,"KG",null,141.21,{"$f":"F502/C502","v":39.598990465507576},0,"Svinekødsprodukter"]
["Partyskinke u/Svær Kogt","CATERKØD",20.866,"KG",null,806.06,38.630307677561582,{"$f":"E503*G503","v":0},"Svinekødsprodukter"]
["Passionsfrugtpuré","ARDO",2,"PS",null,171.2,85.6,0,"Puré"]
["Pasta Fettuccine Naturel","PASTELLA",5,"KRT",null,378.35,75.67,0,"Færdigretter Frisk"]
["Pasta Fusilli Skruer 28","FELICETT",2,"PS",null,104.6,52.3,0,"Kolonial"]
["Pasta Fusilli Skruer 3-F 528","FELICETT",7,"PS",null,404.88,57.839999999999996,0,"Kolonial"]
["Pasta Penne 133","FELICETT",5,"PS",null,265.16000000000003,53.032000000000004,0,"Kolonial"]
["Pasta Penne Rigate","DE CECCO",2,"PK",null,156,78,0,"Kolonial"]
["Pasta Spaghetti 46","FELICETT",3,"PS",null,160.56,53.52,0,"Kolonial"]
["Pasta Suppehorn Øko","BYODO",24,"PS",null,268.56,11.19,0,"Kolonial"]
["Pasta Tagliatelle","ALTONI",5,"PS",null,169.35,33.869999999999997,0,"Færdigretter Frisk"]
["Pasta Tortellini m/Ostefyld","SVANSØ",6,"PS",null,196.44,32.74,0,"Kolonial"]
["Pastinak","GRØNT",7,"KG",null,153,21.857142857142858,0,"Frisk Frugt og Grønt"]
["Pastinak Groftskåret","FRIGODAN",4,"PS",null,211.6,52.9,0,"Grønsager Dybfrost"]
["Pastrami Inderlår Røget Skiver","DEFCO",8,"PK",null,668.24,83.53,0,"Pålæg"]
["Pastrami Original NL","DELITAST",1.8879999999999999,"KG",null,186.42,98.73940677966101,0,"Pålæg"]
["Peanutbutter Creamy","LA COMTE",2,"GL",null,46.18,23.09,0,"Kolonial"]
["Peberfrugt  Orange","GRØNT",65,"KG",null,1871.3,28.78923076923077,0,"Frisk Frugt og Grønt"]
["Peberfrugt Grillet","CARBONE",2,"DS",null,173.88,86.94,0,"Grøntkonserves"]
["Peberfrugt Grøn","GRØNT",5,"KG",null,120,24,0,"Frisk Frugt og Grønt"]
["Peberfrugt Gul","GRØNT",65,"KG",null,1741.9,26.798461538461538,0,"Frisk Frugt og Grønt"]
["Peberfrugt Mix ca 5 kg","GRØNT",5,"KG",null,123.75,24.75,0,"Frisk Frugt og Grønt"]
["Peberfrugt Rød","GRØNT",77.099999999999994,"KG",null,2188.1,28.380025940337227,0,"Frisk Frugt og Grønt"]
["Peberkorn Grøn Madagascar","CODAL",1,"DS",null,20.87,20.87,0,"Grøntkonserves"]
["Peberpaté Grøn Canape","DELIKA",4,"STK",null,318.68,79.67,0,"Pålæg"]
["Peberrod Hel","GRØNT",1,"KG",null,165,165,0,"Frisk Frugt og Grønt"]
["Peberrod Høvlet Kurts","KURTS",6,"DS",null,237.78,39.630000000000003,0,"Grøntkonserves"]
["Peberrodsalat","K-SALAT",6,"BK",null,130.44,21.74,0,"Salater"]
["Peberrodsalat Delikatesse","GRAASTEN",1,"BT",null,33.840000000000003,33.840000000000003,0,"Salater"]
["Pepperoni Skiver","TULIP",4,"PK",null,221.76,55.44,0,"Pålæg"]
["Perlehøne 1,1-1,3 kg Køl","SAVEL",7.4,"KG",null,485.44,65.599999999999994,0,"Lam & Vildt m.v."]
["Perlehønebryst 150-170 g","SAVEL",5.94,"KG",null,925.16,155.75084175084174,0,"Lam & Vildt m.v."]
["Perleløg/Miniløg","FRIGODAN",2,"PS",null,96.68,48.34,0,"Grønsager Dybfrost"]
["Perlespelt Øko","SVANSØ",2,"PS",null,72.22,36.11,0,"Mel"]
["Persille Bredbladet 1 kg","GRØNT",3,"KG",null,169.65,56.550000000000004,0,"Frisk Frugt og Grønt"]
["Persille Bredbladet i Bundt","GRØNT",3,"KG",null,225,75,0,"Frisk Frugt og Grønt"]
["Persille krus","GRØNT",4.4000000000000004,"KG",null,330,75,0,"Frisk Frugt og Grønt"]
["Persille Kruset i Bundt","GRØNT",3.15,"KG",null,247.59,78.600000000000009,0,"Frisk Frugt og Grønt"]
["Persillerod","GRØNT",5,"KG",null,75,15,0,"Frisk Frugt og Grønt"]
["Philadelphia Classic","PHILADEL",5,"BG",null,587.03,117.40599999999999,0,"Ost"]
["Pickles","K-SALAT",2,"SP",null,170.22,85.11,0,"Salater"]
["Pickles Hele","GRAASTEN",1,"SP",null,127.31,127.31,0,"Salater"]
["Pighvarfilet med skind","CAT FISK",16.73,"KG",null,4464.43,266.85176329946205,0,"Fisk, fersk"]
["Pinjekerner Grade-A PK","UNIFOOD",4,"PS",null,999.38,249.845,0,"Nødder & Mandler"]
["Piskefløde Arla Pro 38%","ARLA PRO",472,"STK",null,14283.92,30.262542372881356,0,"Mælk & Smør"]
["Piskefløde Harmonie 38% Øko","HARMONIE",10,"STK",null,387.8,38.78,0,"Mælk & Smør"]
["Piskefløde Kløver 36%","KLØVER",30,"STK",null,874.2,29.14,0,"Mælk & Smør"]
["Pistacienødder m/Skal","SUN ISLA",1,"PS",null,165,165,0,"Nødder & Mandler"]
["Pitabrød Ø15 cm","NINA",1,"KRT",null,269.5,269.5,0,"Brød Fast Food"]
["Pizzasauce 14/16 u/Krydderier","SUGAL",3,"PS",null,131.85,43.949999999999996,0,"Grøntkonserves"]
["Pladespray","GRØNVANG",48,"DS",null,777.72,16.202500000000001,0,"Olie & Fedtstoffer"]
["Polar Tricolore Flødeis","POLAR",8,"PK",null,204.16,25.52,0,"Iscreme"]
["PommesFrites 7x7 mm","FARMFRIT",3,"PS",null,66.78,22.26,0,"Kartofler"]
["PommesFrites Julienne 6x6","CATERPAK",45,"PS",null,1107.45,24.61,0,"Kartofler"]
["PommesFrites Steak 10x18 mm","MCCAIN",40,"PS",null,1117.5999999999999,27.939999999999998,0,"Kartofler"]
["PommesFrites Steakhouse 10x20","FARMFRIT",15,"PS",null,300.14999999999998,20.009999999999998,0,"Kartofler"]
["Porchetta/Grisebryst Ros/Ti/Pe","D CROWN",24.08,"KG",null,1625.4,67.500000000000014,0,"Svinekødsprodukter"]
["Porrer","GRØNT",40.6,"KG",null,690.11,16.997783251231528,0,"Frisk Frugt og Grønt"]
["Portobello svampe Krt","GRØNT",3,"KG",null,130.5,43.5,0,"Frisk Frugt og Grønt"]
["Purløg i Bundt","GRØNT",4.5999999999999996,"KG",null,966,210.00000000000003,0,"Frisk Frugt og Grønt"]
["Pære Clara friis","GRØNT",10,"KG",null,195,19.5,0,"Frisk Frugt og Grønt"]
["Pære Conference","GRØNT",36,"KG",null,432,12,0,"Frisk Frugt og Grønt"]
["Pære Packhams","GRØNT",3.75,"KG",null,61.8,16.48,0,"Frisk Frugt og Grønt"]
["Pølsebrød Løs Skåret f/b 3804","SCHULSTA",4,"KRT",null,797.5,199.375,0,"Brød Fast Food"]
["Pålægschokolade Mælk 27-stk","TOMS",90,"PK",null,1402.2,{"$f":"F566/C566","v":15.58},0,"Kolonial"]
["Pålægschokolade Mørk 27-stk","TOMS",90,"PK",null,1402.2,15.58,{"$f":"E567*G567","v":0},"Kolonial"]
["Quinoa Hel g/f Øko","AURION",1,"PS",null,36.049999999999997,36.049999999999997,0,"Mel"]
["Rabarber","GRØNT",15,"KG",null,309.26,20.617333333333331,0,"Frisk Frugt og Grønt"]
["Radicchio salat rund","GRØNT",1.75,"KG",null,99.75,57,0,"Frisk Frugt og Grønt"]
["Radiser u/Top","GRØNT",4,"KG",null,117.92,29.48,0,"Frisk Frugt og Grønt"]
["Ramsløg/Vilde Hvidløg","GRØNT",0.7,"KG",null,322,460.00000000000006,0,"Frisk Frugt og Grønt"]
["Rapsolie","PUREOIL",26,"DK",null,2392,92,0,"Olie & Fedtstoffer"]
["Rejer 100/200 20% Frys MSC","POLAR S",24,"PS",null,6762.56,281.77333333333337,0,"Fisk"]
["Rejer 125/175 Luxus MSC Str XL","ROYAL G",5,"PS",null,1312.5,262.5,0,"Fisk"]
["Rejer 95/125 Luxus MSC Str XXL","ROYAL G",2,"PS",null,609.9,304.95,0,"Fisk"]
["Rejer i Lage 150/250 MSC","NAAJAQ",6,"SP",null,774,129,0,"Fiskekonserves"]
["Rejesalat","K-SALAT",18,"BK",null,1899,105.5,0,"Salater"]
["Rejesalat Delikatesse","GRAASTEN",6,"BT",null,675,112.5,0,"Salater"]
["Remopuré","BÄHNCKE",1,"SP",null,90.91,90.91,0,"Salater"]
["Remoulade","GRAASTEN",12,"FL",null,152.88,12.74,0,"Salater"]
["Remoulade","K-SALAT",96,"FL",null,1078.08,11.229999999999999,0,"Salater",1]
["Ribbensteg","D CROWN",20.72,"KG",null,958.92,46.279922779922778,0,"Svinekød"]
["Ribbensteg Stege u/Ben Lang","CATERKØD",15.3,"KG",null,816.87,53.390196078431373,0,"Svinekød"]
["Ribbensteg u/Ben Ridset Køl","AB SLAGT",40.659999999999997,"KG",null,1845.15,45.379980324643391,0,"Svinekød"]
["Riberhus Filet ML45+ 2,7kg","RIBERHUS",79.89,"KG",null,5925.45,74.17010889973713,0,"Ost"]
["Ribsgelé","RYNKEBY",3,"SP",null,195.78,65.260000000000005,0,"Marmelade Syltetøj & Grød"]
["Ricotta Galbani Skål 50+","GALBANI",1,"STK",null,77.69,77.69,0,"Ost"]
["Ris Basmati","EURYZA",13,"PS",null,943.6,72.58461538461539,0,"Kolonial"]
["Ris Jasmin","EURYZA",8,"PS",null,483.84,60.48,0,"Kolonial"]
["Ris Jasmin TH","VIVIEN P",3,"PS",null,359.04,119.68,0,"Kolonial"]
["Ris Parboiled","GOLDENTE",12,"PS",null,511.2,42.6,0,"Kolonial"]
["Ris Risotto Arborio","PRO-FOOD",2,"PK",null,44.86,22.43,0,"Kolonial"]
["Ris Risotto Arborio","VIVIEN P",5,"PS",null,609,121.8,0,"Kolonial"]
["Ristede Løg","BÄHNCKE",30,"PS",null,384,12.8,0,"Sennep  Ketchup & Ristede Løg",null,null,null,null,null,null,null,null,null,null,null,null,null,1]
["Roastbeef Inderlår Kogt 1/1","DELIKA",23.344000000000001,"KG",null,2817.37,120.68925633995886,0,"Pålæg"]
["Roots Rodfrugtchips","ROOTS",1,"SP",null,131.38,131.38,0,"Kiks Kager & Snacks"]
["Rosiner 12,5 kg","IMPORT",1,"KRT",null,290.64999999999998,290.64999999999998,0,"Tørfrugter"]
["Rosiner Californien Øko","G VALLEY",1,"KRT",null,656.25,656.25,0,"Tørfrugter"]
["Rosmarin i Bundt","GRØNT",0.75,"KG",null,225,300,0,"Frisk Frugt og Grønt"]
["Roux Lys Traditionel Opbagning","KNORR",18,"DS",null,879.12,48.84,0,"Kolonial"]
["Rugkerner Skåret","AMO",50,"PS",null,433,8.66,0,"Mel"]
["Rugmel Grov","AMO",60,"PS",null,519.6,8.66,0,"Mel"]
["Rugmel Uno Natur+","HAVNEMØL",3,"SÆK",null,204,68,0,"Mel"]
["Rullemargarine Super 16","DRAGSBÆK",2,"PK",null,174.38,87.19,0,"Margarine"]
["Rullepølse AB","CATERKØD",30.47,"KG",null,2908.44,95.452576304561873,0,"Pålæg"]
["Rullepølse Cater","CATERKØD",2.2999999999999998,"KG",null,267.49,116.30000000000001,0,"Pålæg"]
["Rullepølse Høj","CATERKØD",4.55,"KG",null,435.48,95.709890109890111,0,"Pålæg"]
["Rundstykke Klassisk f/b","KOHBERG",1,"KRT",null,81.53,81.53,0,"Brød Bake Off"]
["Rundstykke Rustik","METTE M",2,"KRT",null,221.88,110.94,0,"Brød Bake Off"]
["Rødbeder Aflange","GRØNT",15,"KG",null,105,7,0,"Frisk Frugt og Grønt"]
["Rødbeder Skiver","SAMSØ",8,"DS",null,290.72000000000003,36.340000000000003,0,"Survarer m.v."]
["Rødbeder Tern","BEAUVAIS",2,"DS",null,93.06,46.53,0,"Survarer m.v."]
["Rødkål","GRØNT",24,"KG",null,144,6,0,"Frisk Frugt og Grønt"]
["Rødkål","SAMSØ",18,"DS",null,658.62,36.590000000000003,0,"Survarer m.v."]
["Rødløg  i Sæk","GRØNT",60,"KG",null,409,6.8166666666666664,0,"Frisk Frugt og Grønt"]
["Rødløg i net","GRØNT",16,"KG",null,163.5,10.21875,0,"Frisk Frugt og Grønt"]
["Rødløg m/Top","GRØNT",2,"KG",null,66.88,33.44,0,"Frisk Frugt og Grønt"]
["Rødspfilet Stegt MSC 70-100 g","ROYAL G",1,"KRT",null,346.88,346.88,0,"Fiskeprodukter"]
["Rødspætte Str1 Flået u/Skind","CAT FISK",36.520000000000003,"KG",null,4110.1400000000003,112.54490690032858,0,"Fisk, fersk"]
["Rødspættefil Pan 1/2 100-130 g","TAABBEL",5,"KRT",null,1420.76,284.15199999999999,0,"Fisk"]
["Rødspættefilet 2","CAT FISK",4.83,"KG",null,555.16,114.9399585921325,0,"Fisk, fersk"]
["Rødspættefilet Håndskåret","CAT FISK",21.5,"KG",null,3196.79,148.68790697674419,0,"Fisk, fersk"]
["Rødtungefilet","CAT FISK",15,"KG",null,2264.1,150.94,0,"Fisk, fersk"]
["Rødvin Ed´s Creek BIB","ED´S C",16,"STK",null,1915.84,119.74,0,"Vin",null,null,null,null,null,null,null,null,null,null,null,null,null,null,null,null,null,null,null,null,1]
["Rødvin Farmers Choice Shiriz","FARMERS",2,"FL",null,79.040000000000006,39.520000000000003,0,"Vin"]
["Rødvinssauce ReadyToUse","OSCAR",6,"STK",null,260,43.333333333333336,0,"Saucer Soya m.v."]
["Røremargarine Blød Blå","GRØNVANG",2,"KRT",null,326.83999999999997,163.41999999999999,0,"Margarine"]
["Rørsukker FairTrade","DANSUKKE",7,"PK",null,70.56,10.08,0,"Melis & øvrige sukkerprodukter"]
["Rådyrryg m/Ben 2-3 kg","KIVAN",7.25,"KG",null,1253.82,{"$f":"F630/C630","v":172.94068965517241},0,"Lam & Vildt m.v."]
["Rådyrryg Rå","DK VILDT",5.46,"KG",null,1382.53,253.21062271062272,{"$f":"E631*G631","v":0},"Lam & Vildt m.v."]
["Salat BabyMix Ready To Use","GRØNT",3,"KG",null,198,66,0,"Frisk Frugt og Grønt"]
["Salat Egeblad Grøn","GRØNT",3.2,"KG",null,230.88,72.149999999999991,0,"Frisk Frugt og Grønt"]
["Salat Egeblad Rød","GRØNT",3.2,"KG",null,262.08,81.899999999999991,0,"Frisk Frugt og Grønt"]
["Salat Frillice","GRØNT",4.6500000000000004,"KG",null,385.55,82.913978494623649,0,"Frisk Frugt og Grønt"]
["Salat Frissé Gul","GRØNT",12,"KG",null,1209.5999999999999,100.8,0,"Frisk Frugt og Grønt"]
["Salat hjerte","GRØNT",14,"KG",null,600,42.857142857142854,0,"Frisk Frugt og Grønt"]
["salat Hovedsalat","GRØNT",2,"KG",null,117,58.5,0,"Frisk Frugt og Grønt"]
["Salat Lollo Bionda","GRØNT",23.25,"KG",null,998.03,42.92602150537634,0,"Frisk Frugt og Grønt"]
["Salat Lollo Rosa","GRØNT",21.25,"KG",null,947.47,44.586823529411767,0,"Frisk Frugt og Grønt"]
["Salat Romer","GRØNT",12.5,"KG",null,718.6,57.488,0,"Frisk Frugt og Grønt"]
["Salat Rucula Ready To Use","GRØNT",3.5,"KG",null,260.39999999999998,74.399999999999991,0,"Frisk Frugt og Grønt"]
["Salsasauce Chunky Hot","SANTA M",1,"DK",null,158.52000000000001,158.52000000000001,0,"Saucer Soya m.v."]
["Salsasauce Chunky Medium","SANTA M",4,"DK",null,613.34,153.33500000000001,0,"Saucer Soya m.v."]
["Saltkød Kogt 1/1","SUBLIM",12.007,"KG",null,1065.52,88.741567419005577,0,"Pålæg"]
["Salvie i Bundt","GRØNT",0.25,"KG",null,79.5,318,0,"Frisk Frugt og Grønt"]
["Sambal Oelek","SANTA M",6,"DS",null,402.54,67.09,0,"Saucer Soya m.v."]
["Sandwichbrød LB Grov 17-Skiver","SCHULSTA",8,"PS",null,126.48,15.81,0,"Brød Frisk"]
["Sandwichbrød Lys ca 19-Skiver","SCHULSTA",2,"KRT",null,234.1,117.05,0,"Brød Bake Off"]
["Savoykål","GRØNT",6,"KG",null,111.15,18.525000000000002,0,"Frisk Frugt og Grønt"]
["Sennep","ARFFMANN",8,"FL",null,117.68,14.71,0,"Sennep  Ketchup & Ristede Løg",null,null,null,null,null,null,null,null,null,null,null,null,null,1]
["Sennep Stærk","BÄHNCKE",8,"FL",null,136.32,17.04,0,"Sennep  Ketchup & Ristede Løg"]
["Serranoskinke Blok 1/2 12-Mdr","DELIKA",4.6500000000000004,"KG",null,435.24,93.6,0,"Pålæg"]
["Serranoskinke Skiver","GIRONA F",25,"PK",null,1297.5,51.9,0,"Pålæg"]
["Sesamfrø","SUN ISLA",42,"PS",null,1211.46,28.844285714285714,0,"Kolonial"]
["Sesamfrø Sort","SANTA M",1,"DS",null,66.73,66.73,0,"Kolonial"]
["Sesamolie","LA COMTE",1,"FL",null,56.88,56.88,0,"Olie & Fedtstoffer"]
["Sild Stegte","DANSK C",3,"SP",null,460.8,153.6,0,"Fiskekonserves"]
["Sildefilet Pan f/s MSC 80-125g","ROYAL G",1,"KRT",null,225,225,0,"Fisk"]
["Sirup Lys","DANSUKKE",10,"FL",null,106.78,10.678000000000001,0,"Melis & øvrige sukkerprodukter"]
["Sirup Mørk","DANSUKKE",2,"FL",null,22.54,11.27,0,"Melis & øvrige sukkerprodukter"]
["Skagenslapper","METTE M",1,"KRT",null,109.71,109.71,0,"Brød Bake Off"]
["Skagenslapper","SCHULSTA",1,"KRT",null,233.15,233.15,0,"Brød Bake Off"]
["Skagenslapper Fuldkorn","METTE M",5,"KRT",null,582.45000000000005,116.49000000000001,0,"Brød Bake Off"]
["Skaldyrsalat Delikatesse","K-SALAT",23,"BG",null,2912.03,126.61000000000001,0,"Salater"]
["Skalotteløg Banan 5 KG","GRØNT",25,"KG",null,337.5,13.5,0,"Frisk Frugt og Grønt",null,null,null,null,null,null,null,null,null,null,null,null,null,null,null,null,null,null,null,null,1]
["Skinke Kogt m/Urter Italien","VILLANI",3.52,"KG",null,391.53,111.23011363636363,0,"Pålæg"]
["Skinke Kogt/Røget Rund Skiver","DEFCO",6,"PK",null,312,52,0,"Pålæg"]
["Skinke Ålerøget","DELIKA",2.34,"KG",null,218.18,93.239316239316253,0,"Pålæg"]
["Skinkesalat","K-SALAT",13,"BK",null,743.24,57.17230769230769,0,"Salater"]
["Skinkeschnitzel Val 10% 175g","CATERKØD",15.92,"KG",null,1886.52,118.5,0,"Svinekød"]
["Skinkestrimler Kogt","TULIP",3,"PK",null,164.37,54.79,0,"Svinekød"]
["Skivletter Emmentaler 16x25 g","SOTTILET",6,"PK",null,142.86000000000001,23.810000000000002,0,"Ost"]
["Skovbærmix","FRIGODAN",20,"PS",null,702,35.1,0,"Frugt Dybfrost"]
["Skovsyre Rød i Bakke","LEGRO",0.3,"KG",null,195,650,0,"Frisk Frugt og Grønt"]
["Skummetmælk Arla Frisk 0,1%","ARLA F",463,"STK",null,3287.3,7.1000000000000005,0,"Mælk & Smør"]
["Skummetmælk Harmonie 0,1% Øko","HARMONIE",70,"STK",null,557.20000000000005,7.9600000000000009,0,"Mælk & Smør"]
["Skyr Arla 0,2% l/f Øko","ARLA ØKO",138,"BG",null,1734.66,12.57,0,"Mælk & Smør"]
["Skyr Arla Pro 0,2%","ARLA PRO",26,"SP",null,3471.78,133.53,0,"Mælk & Smør"]
["Skyr Harmonie 0,2% Øko","HARMONIE",1,"SP",null,147.29,147.29,0,"Mælk & Smør"]
["Skyr m/Jordbær/Müslitop Øko","THISE",12,"BG",null,115.56,9.6300000000000008,0,"Mælk & Smør"]
["Skyr m/Mango/Müslitop 1,7% Øko","THISE",12,"BG",null,115.56,9.6300000000000008,0,"Mælk & Smør"]
["Skyr Naturmælk Naturel Øko","NATURMÆL",1,"SP",null,69.59,69.59,0,"Mælk & Smør"]
["Smør Arla Pro Koncentreret","ARLA PRO",15,"SP",null,2128.2399999999998,141.88266666666667,0,"Mælk & Smør"]
["Smør Lurpak Portionsbæger","LURPAK",13,"ÆSK",null,949.56,73.043076923076924,0,"Mælk & Smør"]
["Smør Lurpak Portionsbæger","LURPAK",1,"ÆSK",null,80.28,80.28,0,"Mælk & Smør"]
["Smør Lurpak Saltet","LURPAK",400,"PK",null,13995.8,34.9895,0,"Mælk & Smør"]
["Smør Lurpak Saltet","LURPAK",120,"PK",null,2271.1999999999998,18.926666666666666,0,"Mælk & Smør"]
["Smør Thise Saltet Øko","THISE",16,"STK",null,287.52,17.97,0,"Mælk & Smør"]
["Solbærmarmelade","DGF",4,"GL",null,84,21,0,"Marmelade Syltetøj & Grød"]
["Solbærmarmelade Portion","RYNKEBY",2,"KRT",null,211.2,105.6,0,"Marmelade Syltetøj & Grød"]
["Solgryn","QUAKER",76,"PK",null,1649.2,21.7,0,"Kolonial"]
["Solsikkekerner","ABL FOOD",37,"PS",null,681.61,18.421891891891892,0,"Kolonial"]
["Solsikkekerner","SUN ISLA",6,"PS",null,105,{"$f":"F694/C694","v":17.5},0,"Kolonial"]
["Solsikkekerner Øko","SVANSØ",6,"PS",null,127.5,21.25,{"$f":"E695*G695","v":0},"Kolonial"]
["Soyasauce","KIKKOMAN",36,"FL",null,708.72,19.686666666666667,0,"Saucer Soya m.v."]
["Spareribs 1-Ben 150 g","CATER F",25,"KG",null,1783,71.319999999999993,0,"Svinekød"]
["Special K Classic","KELLOGGS",4,"PK",null,124.36,31.09,0,"Kolonial"]
["Spegepølse m/Hvidløg i Net","CATERKØD",7.5,"KG",null,554.71,73.961333333333343,0,"Pålæg"]
["Speltmel Fuldkorn","AMO",20,"PS",null,454.2,22.71,0,"Mel"]
["Spidskål DK","GRØNT",58,"KG",null,593.04,10.224827586206896,0,"Frisk Frugt og Grønt"]
["Spidskål Rød","GRØNT",8,"KG",null,129.5,16.1875,0,"Frisk Frugt og Grønt"]
["Spidskål udenlandsk","GRØNT",32,"KG",null,696,21.75,0,"Frisk Frugt og Grønt"]
["Spinat Baby bk","GRØNT",7.2,"KG",null,849.12,117.93333333333334,0,"Frisk Frugt og Grønt"]
["Spinat Baby Ready To Use","GRØNT",1,"KG",null,66,66,0,"Frisk Frugt og Grønt"]
["Spinat Helbladet Dosérbar","FRIGODAN",8,"PS",null,265.2,33.15,0,"Grønsager Dybfrost"]
["Spinat Helbladet Portion","CATER",8,"PS",null,213.2,26.65,0,"Grønsager Dybfrost"]
["Sprøjtepose Engangs","PURATOS",2,"PK",null,150.1,75.05,0,"Dekoration & Bagehjælpemidler"]
["Squash Grøn","GRØNT",17.8,"KG",null,362.14,20.344943820224717,0,"Frisk Frugt og Grønt"]
["Steak af Kalvefilet m/Fedt","CATERKØD",60.29,"KG",null,9057.3700000000008,150.23005473544535,0,"Kalvekød"]
["Stegeflæsk Letsaltet Skiv Køl","AB SLAGT",10.14,"KG",null,504.97,49.799802761341226,0,"Svinekødsprodukter"]
["Stegeflæsk m/Svær Skiv 8-9 mm","CATERKØD",30.3,"KG",null,1905.87,62.899999999999991,0,"Svinekød"]
["Stenbiderrogn Rød","LAUNIS",7,"GL",null,428.43,61.204285714285717,0,"Fiskekonserves"]
["Stenbiderrogn Sort","LAUNIS",7,"GL",null,428.43,61.204285714285717,0,"Fiskekonserves"]
["Sukker","DANSUKKE",1,"PS",null,12.82,12.82,0,"Melis & øvrige sukkerprodukter"]
["Sukker Papirsæk","DANSUKKE",12,"SÆK",null,598.55999999999995,49.879999999999995,0,"Melis & øvrige sukkerprodukter"]
["Sukker Plastsæk","DANSUKKE",2,"SÆK",null,98.26,49.13,0,"Melis & øvrige sukkerprodukter"]
["Sukkersnaps 2 kg","GRØNT",2,"KG",null,216,108,0,"Frisk Frugt og Grønt"]
["Suppehøne u/Indmad ca 3000 g","CHEF S",36,"KG",null,682.56,18.959999999999997,0,"Kyllinger & Høns"]
["Suppeurter","FRIGODAN",20,"PS",null,604.6,30.23,0,"Grønsager Dybfrost"]
["Svampe Kantareller","GRØNT",6,"KG",null,835.8,139.29999999999998,0,"Frisk Frugt og Grønt"]
["Svampe Kantareller Kl 1","MAGNIHIL",2,"PS",null,322.16000000000003,161.08000000000001,0,"Grønsager Dybfrost"]
["Svampe Karl Johan Rørhatte","ANBO",2,"PS",null,229.62,114.81,0,"Grønsager Dybfrost"]
["Svampefond Konc 51 ltr","OSCAR",2,"FL",null,309.74,154.87,0,"Saucer Soya m.v."]
["Svampemix Gastro ØKO","TVEDEMOS",9.8000000000000007,"KG",null,1650.6,168.42857142857142,0,"Frisk Frugt og Grønt"]
["Sødmælk Arla Frisk 3,5%","ARLA F",486,"STK",null,4422.6000000000004,9.1000000000000014,0,"Mælk & Smør"]
["Sødmælk Danmælk 3,5%","DANMÆLK",29,"STK",null,247.66,8.5399999999999991,0,"Mælk & Smør"]
["Sødmælk Harmonie 3,5% Øko","HARMONIE",55,"STK",null,518.1,9.42,0,"Mælk & Smør"]
["Tabascosauce Peber","TABASCO",24,"FL",null,613.44000000000005,25.560000000000002,0,"Saucer Soya m.v."]
["Taco Skaller 21 g","SANTA M",2,"KRT",null,410.32,205.16,0,"Kolonial"]
["Tacosauce Hot","SANTA M",0,"DK",null,0,null,0,"Saucer Soya m.v."]
["Tacosauce Mild","SANTA M",1,"DK",null,142.63,142.63,0,"Saucer Soya m.v."]
["Tartelet Luxus 22,5 g","HUMLUM",64,"PK",null,727.68,11.37,0,"Kiks Kager & Snacks"]
["Thebreve Green Mint","LIPTON",2,"PK",null,26.24,13.12,0,"Kaffe, The & Chokoladedrik"]
["Thebreve Solbær","LIPTON",4,"PK",null,52.2,13.05,0,"Kaffe, The & Chokoladedrik"]
["Timian, i Bundt","GRØNT",1.65,"KG",null,495,300,0,"Frisk Frugt og Grønt"]
["Tomat Blomme","GRØNT",15,"KG",null,375,25,0,"Frisk Frugt og Grønt"]
["Tomat Cherry Blomme/dadel","GRØNT",24,"KG",null,885,36.875,0,"Frisk Frugt og Grønt"]
["Tomat Cherry Kumato","GRØNT",3,"KG",null,165,55,0,"Frisk Frugt og Grønt"]
["Tomat Cherry Mix 3kg","GRØNT",3,"KG",null,139.5,46.5,0,"Frisk Frugt og Grønt"]
["Tomat Cherry på Stilk","GRØNT",36,"KG",null,1278,35.5,0,"Frisk Frugt og Grønt"]
["Tomat Cherry på Stilk Øko","GRØNT",3,"KG",null,119.79,39.93,0,"Frisk Frugt og Grønt"]
["Tomat på Stilk","GRØNT",125,"KS",null,2049.4499999999998,16.395599999999998,0,"Frisk Frugt og Grønt",null,null,null,null,null,null,null,null,null,null,null,null,null,1]
["Tomat San Marzano","GRØNT",54,"KG",null,2162.16,40.04,0,"Frisk Frugt og Grønt"]
["Tomat udenlandsk","GRØNT",30,"KG",null,382.53,12.750999999999999,0,"Frisk Frugt og Grønt"]
["Tomater Cherry SemiDried","SVANSØ",2,"BT",null,147.72,73.86,0,"Grøntkonserves"]
["Tomater Hakkede","IMPORT",75,"DS",null,1184.55,15.793999999999999,0,"Grøntkonserves"]
["Tomater SemiDried i Olie","SUNBEST",1,"GL",null,177.15,177.15,0,"Grøntkonserves"]
["Tomater SemiDried Ristet","FELDTHUS",1,"BT",null,70.89,70.89,0,"Grøntkonserves"]
["Tomater Soltørret Olie","FELDTHUS",2,"BT",null,98.98,49.49,0,"Grøntkonserves"]
["Tomatjuice 1 ltr","RYNKEBY",12,"STK",null,152.16,12.68,0,"Saft Juice & Læskedrik"]
["Tomatketchup TopDown","HEINZ",140,"FL",null,3481.8,24.87,0,"Sennep  Ketchup & Ristede Løg",null,null,null,null,null,null,null,null,null,null,null,null,null,2]
["Tomatkoncentrat 28/30","IMPORT",18,"DS",null,255.84,14.213333333333333,0,"Sennep  Ketchup & Ristede Løg"]
["Tomatsuppe","MOU",40,"PS",null,1095.5999999999999,27.389999999999997,0,"Suppe & boller"]
["Topping Chocolade","MEGA",4,"FL",null,454.68,113.67,0,"Dessertartikler"]
["Topping Jordbær","MEGA",4,"FL",null,248.6,62.15,0,"Dessertartikler"]
["Topping Karamel","MEGA",4,"FL",null,261.04000000000002,65.260000000000005,0,"Dessertartikler"]
["Torskefilet 800-1500G","CAT FISK",56.67,"KG",null,6278.53,{"$f":"F758/C758","v":110.7910711134639},0,"Fisk, fersk"]
["Torskefilet Benfri","CAT FISK",10.38,"KG",null,1104.22,106.37957610789981,{"$f":"E759*G759","v":0},"Fisk, fersk"]
["Torskefilet MSC 90-160 g","ROYAL G",4,"KRT",null,1601.24,400.31,0,"Fisk"]
["Torskelever Røget","AMANDA",66,"DS",null,660,10,0,"Fiskekonserves"]
["Torskeloins 120-140 g","ROYAL G",5,"KRT",null,2039.05,407.81,0,"Fisk"]
["Torskerogn Røget MSC","AMANDA",8,"DS",null,130.96,16.37,0,"Fiskekonserves"]
["Tortilla Fuldkorn 8\"","SANTA M",12,"PS",null,222,18.5,0,"Brød Fast Food"]
["Tortillachips Nacho","SANTA M",12,"PS",null,223.92,18.66,0,"Kiks Kager & Snacks"]
["Tranebær Soltørret","SUN ISLA",2,"PS",null,90,{"$f":"F766/C766","v":45},0,"Tørfrugter"]
["Tranebærdrik Naturig","RYNKEBY",12,"STK",null,230.52,19.21,0,"Saft Juice & Læskedrik"]
["Trøffelolie Sort","URBANI",2,"FL",null,235.12,117.56,0,"Olie & Fedtstoffer"]
["Trøffelpuré Sommer i Tube","URBANI",1,"STK",null,54.26,54.26,0,"Konservesspecialiteter"]
["Tun Naturel i Olie","IMPORT",6,"DS",null,472.5,78.75,0,"Fiskekonserves"]
["Tun Naturel i Vand","IMPORT",24,"DS",null,870,36.25,0,"Fiskekonserves"]
["Tunsalat","K-SALAT",13,"BK",null,796.9,61.3,0,"Salater"]
["Tørgær Gærflager Øko","RAPUNZEL",1,"PK",null,73.03,73.03,0,"Bageartikler"]
["Unika Den Hvide Dame","UNIKA",20,"STK",null,1317.4,65.87,0,"Ost"]
["Unika Gammel Knas","UNIKA",8.4540000000000006,"KG",null,862.9,102.07002602318428,0,"Ost"]
["Unika Gnalling","UNIKA",5,"STK",null,168.55,33.71,0,"Ost"]
["Unika Havgus ca 2 kg Øko","UNIKA",14.907,"KG",null,1854.43,124.39994633393708,0,"Ost"]
["Unika Høgelundgaard","UNIKA",6.1289999999999996,"KG",null,750.13,122.39027573829337,0,"Ost"]
["Unika Krondild","UNIKA",6,"STK",null,196.74,32.79,0,"Ost"]
["Unika Kry ca 2,2 kg Øko","UNIKA",8.2850000000000001,"KG",null,1233.1300000000001,148.83886541943272,0,"Ost"]
["Unika Rød Løber Øko","UNIKA",32,"STK",null,1049.28,32.79,0,"Ost"]
["Unika Sirius","UNIKA",11,"STK",null,1085.01,98.63727272727273,0,"Ost"]
["Urtemix Løst Pakket i Bakke","LEGRO",0.2,"KG",null,130,650,0,"Frisk Frugt og Grønt"]
["Vaffel Belgisk","DINA",6,"KRT",null,810,135,0,"Forårsruller m.v."]
["Vafler 4-5 Kugler 100x165 mm","IDUN",2,"KRT",null,397.5,198.75,0,"Kiks Kager & Snacks"]
["Vagtelæg Køl","CHARMILL",7,"BK",null,218.61,31.23,0,"Æg & Ægprodukter"]
["Valnøddekerner","SUN ISLA",5,"PS",null,650,130,0,"Nødder & Mandler"]
["Valnøddekerner","ABL FOOD",4,"PS",null,543.32000000000005,135.83000000000001,0,"Nødder & Mandler"]
["Valnøddepaté","DELITAST",2,"STK",null,179.18,89.59,0,"Pålæg"]
["Vaniljestang Bourbon","VERIBEST",7,"GL",null,5314.19,759.17,0,"Bageartikler"]
["Vaniljesukker","TØRSLEFF",2,"BT",null,388.42,194.21,0,"Bageartikler"]
["Vannameirejer Rå Pillet 13/15","NORDIC S",8,"PK",null,930.88,116.36,0,"Fisk"]
["Vesterhavsost 48+ 26U 1,5 Øko","THISE",6.5650000000000004,"KG",null,747.03,113.78979436405177,0,"Ost"]
["Vildtfond Signature","OSCAR",3,"DS",null,258.12,86.04,0,"Saucer Soya m.v."]
["Vinaigrette Sesame Soy","HELLMANN",1,"FL",null,62.84,62.84,0,"Dressinger"]
["Vindruer Grøn Stenfri krt","GRØNT",40.5,"KG",null,1582.91,39.084197530864202,0,"Frisk Frugt og Grønt"]
["Vindruer Rød Stenfri krt","GRØNT",81,"KG",null,3000.38,37.041728395061732,0,"Frisk Frugt og Grønt"]
["Wienerschnitzel Kalv u/Pan 200","AB SLAGT",15.55,"KG",null,1926.65,{"$f":"F798/C798","v":123.90032154340837},0,"Kalvekød"]
["Wienerschnitzel KalveZ 250 g+","AB SLAGT",33.11,"KG",null,4890.55,147.7061310782241,0,"Kalvekød"]
["Wienerschnitzel KalveZ Il Vals","CATER F",15.69,"KG",null,2227.1999999999998,141.95028680688335,0,"Kalvekød"]
["Wienerschnitzel KalveZ Upan","AB SLAGT",4.49,"KG",null,960.41,213.89977728285075,0,"Kalvekød"]
["Wrap Plain Catering 30 cm","WANTED",9,"PK",null,427.5,47.5,0,"Brød Fast Food"]
["Ymerdrys m/Sukker","STRUER",14,"PS",null,199.08,14.22,0,"Kolonial"]
["Yoggi Appelsin m/Top 150+20 g","YOGGI",132,"STK",null,781.44,5.9200000000000008,0,"Mælk & Smør"]
["Yoggi Letmælk Fersk/Hind 1,3%","YOGGI",416,"STK",null,1460.16,3.5100000000000002,0,"Mælk & Smør"]
["Yoggi Letmælk Jordbær 1,3%","YOGGI",472,"STK",null,1656.72,3.5100000000000002,0,"Mælk & Smør"]
["Yoggi Letmælk Pære/Banan 1,3%","YOGGI",456,"STK",null,1600.56,3.51,0,"Mælk & Smør"]
["Yoggi Vanilje m/Top 150+20 g","YOGGI",120,"STK",null,714,5.95,0,"Mælk & Smør"]
["Yoghurt Græsk Inspireret 10%","KLØVER",2,"SP",null,183.9,91.95,0,"Mælk & Smør"]
["Yoghurt Sød Appelsin 3% Øko","NATURMÆL",168,"STK",null,700.8,4.1714285714285708,0,"Mælk & Smør"]
["Yoghurt Sød Jordbær 3% Øko","NATURMÆL",8,"STK",null,35.36,4.42,0,"Mælk & Smør"]
["Yoghurt Sød Naturel 3,5% Øko","NATURMÆL",96,"STK",null,358.56,3.7349999999999999,0,"Mælk & Smør"]
["Æble Cripps Pink","GRØNT",4.5,"KG",null,74.400000000000006,16.533333333333335,0,"Frisk Frugt og Grønt"]
["Æble Golden Delicious","GRØNT",36,"KG",null,540,15,0,"Frisk Frugt og Grønt"]
["Æble Granny Smith","GRØNT",96,"KG",null,1584,16.5,0,"Frisk Frugt og Grønt"]
["Æble pink lady","GRØNT",61,"KG",null,1428.76,23.422295081967214,0,"Frisk Frugt og Grønt"]
["Æble Royal Gala","GRØNT",97.5,"KG",null,1549.8,15.895384615384614,0,"Frisk Frugt og Grønt"]
["Æble Sunrise","GRØNT",10,"KG",null,120,12,0,"Frisk Frugt og Grønt"]
["Æblecidereddike 5%","ANDREA M",7,"FL",null,112.35,16.05,0,"Kolonial"]
["Æblejuice 1 ltr","RYNKEBY",408,"STK",null,3794.4,9.3000000000000007,0,"Saft Juice & Læskedrik"]
["Æblejuice Professionel","RYNKEBY",96,"STK",null,864.96,9.01,0,"Saft Juice & Læskedrik"]
["Æbletern 10x10 mm","FRIGODAN",12,"PS",null,598.64,49.886666666666663,{"$f":"E822*G822","v":0},"Frugt Dybfrost"]
["Æg Str M Løse DK","DANÆG",51,"KRT",null,13376.79,262.29000000000002,0,"Æg & Ægprodukter"]
["Æggeblommer","GALLINA",18,"FL",null,737.34,40.963333333333338,0,"Æg & Ægprodukter"]
["Æggehvider","GALLINA",2,"FL",null,42.68,21.34,0,"Æg & Ægprodukter"]
["Æggehvider","GALLINA",12,"PK",null,324,27,0,"Æg & Ægprodukter"]
["Ærter Fine DK","FRIGODAN",11,"PS",null,545.54999999999995,49.595454545454544,0,"Grønsager Dybfrost"]
["Ærter friske DK","GRØNT",12,"KG",null,343.9,28.658333333333331,0,"Frisk Frugt og Grønt"]
["Ærter m/Bælg","GRØNT",12,"KG",null,366,30.5,0,"Frisk Frugt og Grønt"]
["Ærteskud i BK","LEGRO",0.1,"KG",null,49.74,{"$f":"F830/C830","v":497.4},0,"Frisk Frugt og Grønt"]
["Ærteskud i Potte","GRØNT",0.6,"KG",null,330,550,0,"Frisk Frugt og Grønt"]
["Ærteskud/blade 500 gr","YDING",1,"KG",null,108,108,0,"Frisk Frugt og Grønt"]
["Østershat krt","GRØNT",6,"KG",null,378,63,0,"Frisk Frugt og Grønt"]
["Ålefilet Røget 20-25 stk","POLAR S",1,"PK",null,208.75,208.75,0,"Fisk"]
["Oksebovklump",null,18,"KG",null,null,62]

{"sheet":"Retter","index":2,"n_rows":219,"n_cols":3,"rows_kept":219,"cut":false,"hidden":false,"merged":[]}
["Menu","Kolonne",{"$f":"VLOOKUP(Opskrifter!B2,Retter!A:B,2,FALSE)","v":10}]
["½ kylling ",10]
["Apple pie ",11]
["Aspargessuppe",12]
["Avocado m. rejer ",13]
["Bagt laks ",14]
["Barbecue kylling ",15]
["Biksemad",16]
["Boller i karry",17]
["Brownie m. is ",18]
["Bruchetta",19]
["Brunsviger ",20]
["Brændende kærlighed",21]
["Buffalo chicken",22]
["Burger",23]
["Butter chicken",24]
["Butterdej m. skinke og broccoli ",25]
["Butterdejspakker",26]
["Byg selv burger",27]
["Byg selv sandwich",28]
["Bøf bernaise",29]
["Bøf m. rødvinssauce",30]
["Bøf stroganoff",31]
["Camembert frites ",32]
["Carbonara",33]
["Cheesecake",34]
["Chili con carne",35]
["Chokolade fondant ",36]
["Chokoladekage",37]
["Chokolademousse",38]
["Citronfromage ",39]
["Citrontærte",40]
["Club sandwich",41]
["Coq au vin",42]
["Creme brulee",43]
["Cremet pasta m. laks",44]
["Culottesteg ",45]
["Cæsarsalat m. kylling",46]
["Dannebrogsgryde",47]
["Dansk bøf",48]
["Drømmekage",49]
["Dunse sandwich",50]
["Engelsk bøf",51]
["Fish 'n' chips",52]
["Fisk",53]
["Fiskefilet m. remo",54]
["Fiskefrikadeller",55]
["Fiskesalat",56]
["Flæskesteg",57]
["Flæskestegssandwich",58]
["Forloren hare",59]
["Forårsruller",60]
["Fransk løgsuppe",61]
["Frikadeller",62]
["Frikadeller m. hvidkål",63]
["Frikadeller m. kartofler",64]
["Frugtsalat m. råcreme",65]
["Frugtsuppe",66]
["Frugttærte ",67]
["Fyldt kylling ",68]
["Fyldte peberfrugter",69]
["Gammeldaws oksesteg",70]
["Gammeldaws æblekage",71]
["Gazpacho",72]
["Glaseret skinke",73]
["Gratineret hvidløgsrejer",74]
["Gratineret torsk",75]
["Gravad laks",76]
["Grillspyd",77]
["Græske kødboller",78]
["Gullash m. mos",79]
["Hakkebøf m. bløde løg",80]
["Hamburgerryg ",81]
["Hamburgerryg m. grønt",82]
["Hellefisk ",83]
["Helstegt kylling ",84]
["Helstegt rødspætte",85]
["Herregårdsbøf ",86]
["Herregårdsskinke ",87]
["Hindbærmousse",88]
["Hot wings",89]
["Hotdogs",90]
["Hønsesuppe",91]
["Indbagt laks",92]
["Is",93]
["Is m. vafler og guf",94]
["Islagkage ",95]
["Jordbær m. fløde",96]
["Jordskokkesuppe",97]
["Kalkunbryst",98]
["Kalv stegt som vildt",99]
["Kalve culotte",100]
["Kalvekoteletter ",101]
["Kalvemørbrad",102]
["Kalvesteak m. pommes",103]
["Kammusling ",104]
["Karbonader",105]
["Karry würst",106]
["Karrysuppe",107]
["Kartoffelporresuppe ",108]
["Kebabmix",109]
["Kokkens sorte gryde",110]
["Koldskål",111]
["Kong Frederiks livret ",112]
["Koteletter i fad ",113]
["Krebinetter",114]
["Kylling",115]
["Kylling i karry",116]
["Kylling m. fries",117]
["Kylling m. kartofsalat",118]
["Kylling m. pommes",119]
["Kylling thai karry ",120]
["Kylling/spinat lasagne",121]
["Kyllinge-frikassé",122]
["Kyllingeoverlår m. pasta",123]
["Kyllingesandwich",124]
["Kylling-spinat lasagne",125]
["Kød/melbolle suppe",126]
["Lagkage",127]
["Laks m. hollandaise",128]
["Laks m. stuvet spinat",129]
["Laksefillet",130]
["Lakseroulade ",131]
["Laksetatar ",132]
["Lammekølle ",133]
["Lasagne",134]
["Limetærte",135]
["Mac 'n' cheese",136]
["Marineret mørbrad",137]
["Mazarin",138]
["Medister",139]
["Mexi pandekager",140]
["Mexiburger",141]
["Mexicansk",142]
["Millionbøf",143]
["Moules frites",144]
["Mørbrad m. bacon",145]
["Mørbradgryde  ",146]
["Nachos",147]
["Nakkefilet",148]
["Nøddebund m. hindbærmousse",149]
["Oksefilet",150]
["Oksefilet",151]
["Ovnbagt laks",152]
["Pandekager m. is",153]
["Paneret stegt flæsk",154]
["Panna cotta",155]
["Paprikagryde",156]
["Pariserbøf",157]
["Pasta",158]
["Pasta bolognese",159]
["Pasta m. kødboller",160]
["Pasta m. pesto/kylling",161]
["Pastaret",162]
["Peberbøf",163]
["Peberhakkebøf",164]
["Pirogger ",165]
["Pita",166]
["Pizza",167]
["Porchetta",168]
["Pulled pork burger",169]
["Purésuppe ",170]
["Pølsehorn",171]
["Pølsemix",172]
["Rabarbergrød ",173]
["Rabarbersuppe m. is ",174]
["Rabarbertrifli ",175]
["Rejecocktail",176]
["Rejespyd",177]
["Ribbenstegsburger",178]
["Ris taffel",179]
["Risengrød",180]
["Rispapirsruller",181]
["Ristet brød m. svampe",182]
["Rodfrugtssuppe",183]
["Rødgrød",184]
["Rødtunge",185]
["Saltimbocca",186]
["Skaldyrsrisotto",187]
["Skinkeschnitzler ",188]
["Skipperlabscovs",189]
["Smuldrepai",190]
["Spareribs",191]
["Steaks",192]
["Stegt flæsk",193]
["Stegt tun",194]
["Stegte rejer i hvidløg",195]
["Stjerneskud",196]
["Suppe",197]
["Svamperisotto ",198]
["Svensk pølseret",199]
["Svin a la creme",200]
["Svinekoteletter ",201]
["Svinemørbrad",202]
["Svøbt asparges",203]
["Tacoskaller",204]
["Tarteletter",205]
["Tatar",206]
["T-bone steak",207]
["Thaisuppe m. kylling",208]
["Tikka masala ",209]
["Tiramisu",210]
["Toast",211]
["Tomatsuppe",212]
["Torsk",213]
["Torsk m. gratin",214]
["Tortelinni ",215]
["Tunmousse m. salat",216]
["Tunsalat",217]
["Tærte",218]
["Vafler a la Kuffen",219]
["Valnøddebrownie ",220]
["Vaniljeis m. bær",221]
["Vildt gryde m. kartofmos",222]
["Wienerschnitzel",223]
["Wok",224]
["Æggekage m. bacon",225]
["Ærtesuppe",226]
["Ørred",227]

{"sheet":"Indkøb","index":3,"n_rows":23,"n_cols":3,"rows_kept":23,"cut":false,"hidden":false,"merged":[]}
["Ingridienser","Indkøb","Enhed"]
[{"$f":"IFERROR(INDEX(Opskrifter!$A$6:$A$43,SMALL(IF(Opskrifter!$B$6:$B$43<>0,ROW(Opskrifter!$A$6:$A$43)-CELL(\"row\",Opskrifter!$A$6:$A$43)+1),ROWS($1:1))),\"\")","v":"Agurkesalat"},{"$f":"IFERROR(VLOOKUP(A2,Opskrifter!$A$6:$C$35,2,FALSE),\"\")","v":1},{"$f":"IFERROR(VLOOKUP(A2,Opskrifter!$A$6:$C$35,3,FALSE),\"\")","v":"DS"}]
[{"$f":"IFERROR(INDEX(Opskrifter!$A$6:$A$43,SMALL(IF(Opskrifter!$B$6:$B$43<>0,ROW(Opskrifter!$A$6:$A$43)-CELL(\"row\",Opskrifter!$A$6:$A$43)+1),ROWS($1:2))),\"\")","v":"Kylling Griller 1300 g"},{"$f":"IFERROR(VLOOKUP(A3,Opskrifter!$A$6:$C$35,2,FALSE),\"\")","v":1},{"$f":"IFERROR(VLOOKUP(A3,Opskrifter!$A$6:$C$35,3,FALSE),\"\")","v":"STK"}]
[{"$f":"IFERROR(INDEX(Opskrifter!$A$6:$A$43,SMALL(IF(Opskrifter!$B$6:$B$43<>0,ROW(Opskrifter!$A$6:$A$43)-CELL(\"row\",Opskrifter!$A$6:$A$43)+1),ROWS($1:3))),\"\")","v":"Remoulade"},{"$f":"IFERROR(VLOOKUP(A4,Opskrifter!$A$6:$C$35,2,FALSE),\"\")","v":1},{"$f":"IFERROR(VLOOKUP(A4,Opskrifter!$A$6:$C$35,3,FALSE),\"\")","v":"FL"}]
[{"$f":"IFERROR(INDEX(Opskrifter!$A$6:$A$43,SMALL(IF(Opskrifter!$B$6:$B$43<>0,ROW(Opskrifter!$A$6:$A$43)-CELL(\"row\",Opskrifter!$A$6:$A$43)+1),ROWS($1:4))),\"\")","v":""},{"$f":"IFERROR(VLOOKUP(A5,Opskrifter!$A$6:$C$35,2,FALSE),\"\")","v":""},{"$f":"IFERROR(VLOOKUP(A5,Opskrifter!$A$6:$C$35,3,FALSE),\"\")","v":""}]
[{"$f":"IFERROR(INDEX(Opskrifter!$A$6:$A$43,SMALL(IF(Opskrifter!$B$6:$B$43<>0,ROW(Opskrifter!$A$6:$A$43)-CELL(\"row\",Opskrifter!$A$6:$A$43)+1),ROWS($1:5))),\"\")","v":""},{"$f":"IFERROR(VLOOKUP(A6,Opskrifter!$A$6:$C$35,2,FALSE),\"\")","v":""},{"$f":"IFERROR(VLOOKUP(A6,Opskrifter!$A$6:$C$35,3,FALSE),\"\")","v":""}]
[{"$f":"IFERROR(INDEX(Opskrifter!$A$6:$A$43,SMALL(IF(Opskrifter!$B$6:$B$43<>0,ROW(Opskrifter!$A$6:$A$43)-CELL(\"row\",Opskrifter!$A$6:$A$43)+1),ROWS($1:6))),\"\")","v":""},{"$f":"IFERROR(VLOOKUP(A7,Opskrifter!$A$6:$C$35,2,FALSE),\"\")","v":""},{"$f":"IFERROR(VLOOKUP(A7,Opskrifter!$A$6:$C$35,3,FALSE),\"\")","v":""}]
[{"$f":"IFERROR(INDEX(Opskrifter!$A$6:$A$43,SMALL(IF(Opskrifter!$B$6:$B$43<>0,ROW(Opskrifter!$A$6:$A$43)-CELL(\"row\",Opskrifter!$A$6:$A$43)+1),ROWS($1:7))),\"\")","v":""},{"$f":"IFERROR(VLOOKUP(A8,Opskrifter!$A$6:$C$35,2,FALSE),\"\")","v":""},{"$f":"IFERROR(VLOOKUP(A8,Opskrifter!$A$6:$C$35,3,FALSE),\"\")","v":""}]
[{"$f":"IFERROR(INDEX(Opskrifter!$A$6:$A$43,SMALL(IF(Opskrifter!$B$6:$B$43<>0,ROW(Opskrifter!$A$6:$A$43)-CELL(\"row\",Opskrifter!$A$6:$A$43)+1),ROWS($1:8))),\"\")","v":""},{"$f":"IFERROR(VLOOKUP(A9,Opskrifter!$A$6:$C$35,2,FALSE),\"\")","v":""},{"$f":"IFERROR(VLOOKUP(A9,Opskrifter!$A$6:$C$35,3,FALSE),\"\")","v":""}]
[{"$f":"IFERROR(INDEX(Opskrifter!$A$6:$A$43,SMALL(IF(Opskrifter!$B$6:$B$43<>0,ROW(Opskrifter!$A$6:$A$43)-CELL(\"row\",Opskrifter!$A$6:$A$43)+1),ROWS($1:9))),\"\")","v":""},{"$f":"IFERROR(VLOOKUP(A10,Opskrifter!$A$6:$C$35,2,FALSE),\"\")","v":""},{"$f":"IFERROR(VLOOKUP(A10,Opskrifter!$A$6:$C$35,3,FALSE),\"\")","v":""}]
[{"$f":"IFERROR(INDEX(Opskrifter!$A$6:$A$43,SMALL(IF(Opskrifter!$B$6:$B$43<>0,ROW(Opskrifter!$A$6:$A$43)-CELL(\"row\",Opskrifter!$A$6:$A$43)+1),ROWS($1:10))),\"\")","v":""},{"$f":"IFERROR(VLOOKUP(A11,Opskrifter!$A$6:$C$35,2,FALSE),\"\")","v":""},{"$f":"IFERROR(VLOOKUP(A11,Opskrifter!$A$6:$C$35,3,FALSE),\"\")","v":""}]
[{"$f":"IFERROR(INDEX(Opskrifter!$A$6:$A$43,SMALL(IF(Opskrifter!$B$6:$B$43<>0,ROW(Opskrifter!$A$6:$A$43)-CELL(\"row\",Opskrifter!$A$6:$A$43)+1),ROWS($1:11))),\"\")","v":""},{"$f":"IFERROR(VLOOKUP(A12,Opskrifter!$A$6:$C$35,2,FALSE),\"\")","v":""},{"$f":"IFERROR(VLOOKUP(A12,Opskrifter!$A$6:$C$35,3,FALSE),\"\")","v":""}]
[{"$f":"IFERROR(INDEX(Opskrifter!$A$6:$A$43,SMALL(IF(Opskrifter!$B$6:$B$43<>0,ROW(Opskrifter!$A$6:$A$43)-CELL(\"row\",Opskrifter!$A$6:$A$43)+1),ROWS($1:12))),\"\")","v":""},{"$f":"IFERROR(VLOOKUP(A13,Opskrifter!$A$6:$C$35,2,FALSE),\"\")","v":""},{"$f":"IFERROR(VLOOKUP(A13,Opskrifter!$A$6:$C$35,3,FALSE),\"\")","v":""}]
[{"$f":"IFERROR(INDEX(Opskrifter!$A$6:$A$43,SMALL(IF(Opskrifter!$B$6:$B$43<>0,ROW(Opskrifter!$A$6:$A$43)-CELL(\"row\",Opskrifter!$A$6:$A$43)+1),ROWS($1:13))),\"\")","v":""},{"$f":"IFERROR(VLOOKUP(A14,Opskrifter!$A$6:$C$35,2,FALSE),\"\")","v":""},{"$f":"IFERROR(VLOOKUP(A14,Opskrifter!$A$6:$C$35,3,FALSE),\"\")","v":""}]
[null,{"$f":"IFERROR(VLOOKUP(A15,Opskrifter!$A$6:$C$35,2,FALSE),\"\")","v":""},{"$f":"IFERROR(VLOOKUP(A15,Opskrifter!$A$6:$C$35,3,FALSE),\"\")","v":""}]
[null,{"$f":"IFERROR(VLOOKUP(A16,Opskrifter!$A$6:$C$35,2,FALSE),\"\")","v":""},{"$f":"IFERROR(VLOOKUP(A16,Opskrifter!$A$6:$C$35,3,FALSE),\"\")","v":""}]
[null,{"$f":"IFERROR(VLOOKUP(A17,Opskrifter!$A$6:$C$35,2,FALSE),\"\")","v":""},{"$f":"IFERROR(VLOOKUP(A17,Opskrifter!$A$6:$C$35,3,FALSE),\"\")","v":""}]
[null,{"$f":"IFERROR(VLOOKUP(A18,Opskrifter!$A$6:$C$35,2,FALSE),\"\")","v":""},{"$f":"IFERROR(VLOOKUP(A18,Opskrifter!$A$6:$C$35,3,FALSE),\"\")","v":""}]
[null,{"$f":"IFERROR(VLOOKUP(A19,Opskrifter!$A$6:$C$35,2,FALSE),\"\")","v":""},{"$f":"IFERROR(VLOOKUP(A19,Opskrifter!$A$6:$C$35,3,FALSE),\"\")","v":""}]
[null,{"$f":"IFERROR(VLOOKUP(A20,Opskrifter!$A$6:$C$35,2,FALSE),\"\")","v":""},{"$f":"IFERROR(VLOOKUP(A20,Opskrifter!$A$6:$C$35,3,FALSE),\"\")","v":""}]
[null,{"$f":"IFERROR(VLOOKUP(A21,Opskrifter!$A$6:$C$35,2,FALSE),\"\")","v":""}]
[null,{"$f":"IFERROR(VLOOKUP(A22,Opskrifter!$A$6:$C$35,2,FALSE),\"\")","v":""}]
[null,{"$f":"IFERROR(VLOOKUP(A23,Opskrifter!$A$6:$C$35,2,FALSE),\"\")","v":""}]